Cogmind - Beta 9.6 @@@ ROGUE MODE // 2020.08.26 @ 11:29:45 Player: Alexbot Result: Destroyed 0B10! Performance ------------- Evolutions (9) 4500 Regions Visited (35) 7000 Robots Destroyed (314) 1570 Value Destroyed (14634) 14634 Prototype IDs (89) 1780 Alien Tech Used (10) 2000 Bonus (50260) 50260 TOTAL SCORE: 81744 Bonus ------- Triggered Max Security 3000 High Alert Combat Kills 2755 Follower Combat Kills 3064 Network Hubs Disabled 400 Aligned with FarCom 300 Met Data Miner 300 Destroyed Z-Imprinter 1000 Exposed GOLEM Chamber 500 Found Hidden Lab 3000 Used Core Reset Matrix 3000 Met Sigix 2000 Activated Exoskeleton 3000 Escaped with Exo-Sigix 10000 Destroyed MAIN.C Guards 500 Met MAIN.C 5000 Destroyed MAIN.C Shell 5000 Destroyed MAIN.C 10000 Win 3000 Friendly Fire -5559 Cogmind --------- Core Integrity 1366/1600 Matter 221/425 Energy 662/740 System Corruption 1% Temperature Cool (10) Movement Hovering (20) Location Tau Ceti IV Orbit Parts ------- > --- POWER (1) -------- Zero-point Reactor > --- PROPULSION (5) --- Improved Linear Gravjet Improved Linear Gravjet Combat Linear Gravjet Combat Linear Gravjet Combat Linear Gravjet > --- UTILITY (17) ----- Large Storage Unit Large Storage Unit Large Storage Unit Energy Well Zionite Metafield Generator Experimental Sensor Array Experimental Signal Interpreter Experimental Terrain Scanner Experimental Terrain Scan Processor Advanced Weapon Cycler Experimental Transmission Jammer Experimental Powered Armor Quantum Router > --- WEAPON (3) ------- Heavy Hardcell Cannon Graviton Cannon > --- INVENTORY (22) --- Advanced Heavy Siege Treads Large Storage Unit Experimental Matter Compressor (500) Experimental Weapon Shielding Experimental Weapon Shielding Beam Splitter EM Dispersion Field Improved Remote Force Field Transdimensional Reconstructor Core Regenerator Gamma Rifle HERF Cannon HERF Cannon NK-0LA's Tesla Doomcannon Heavy Shock Bomb Launcher Heavy Shock Bomb Launcher Compact Tesla Bomb Launcher Field Lobotomy Kit Force Lance Peak State ------------ > --- POWER ------------ Zero-point Reactor > --- PROPULSION ------- Improved Linear Gravjet Improved Linear Gravjet Combat Linear Gravjet Combat Linear Gravjet Combat Linear Gravjet > --- UTILITY ---------- Large Storage Unit Large Storage Unit Large Storage Unit Energy Well Zionite Metafield Generator Experimental Sensor Array Experimental Signal Interpreter Experimental Terrain Scanner Experimental Terrain Scan Processor Advanced Weapon Cycler Experimental Transmission Jammer Advanced Reaction Control System Experimental Weapon Shielding Beam Splitter EM Dispersion Field Improved Remote Force Field Quantum Router > --- WEAPON ----------- Heavy Hardcell Cannon Graviton Cannon > --- INVENTORY -------- Advanced Heavy Siege Treads Large Storage Unit Experimental Matter Compressor Experimental Weapon Shielding Transdimensional Reconstructor Core Regenerator Gamma Rifle HERF Cannon HERF Cannon NK-0LA's Tesla Doomcannon Heavy Shock Bomb Launcher Heavy Shock Bomb Launcher Compact Tesla Bomb Launcher Field Lobotomy Kit Force Lance [Rating: 203] Favorites ----------- Power Micro Fission Core Engine Improved Ion Engine Power Core Micro Fission Core Reactor Quantum Reactor Propulsion Combat Linear Gravjet Treads Armored Medium Treads Leg Flexi-carbon Leg Wheel Armored Wheel Hover Unit Combat Linear Gravjet Utility Large Storage Unit Device Experimental Sensor Array Storage Large Storage Unit Processor Advanced Signal Interpreter Hackware Deep Network Scanner Protection Light Regenerative Plating Weapon Spread Laser Energy Gun Spread Laser Energy Cannon NK-0LA's Tesla Doomcannon Ballistic Gun Gauss Rifle Ballistic Cannon Bore Cannon Launcher Compact Tesla Bomb Launcher Special Weapon Improved Plasma Cutter Slashing Weapon Katana Piercing Weapon Force Lance Special Melee Weapon Datajack Build | -11 -10 -10 -9 -9 -9 -8 -8 -8 -7 -7 -7 -7 -7 -6 -6 -6 -6 -6 -5 -5 -5 -5 -5 -5 -4 -4 -4 -4 -4 -3 -3 -3 -2 -1 -1 ------- Run | Scr Mat Min Mat Min Exi Min Mat Sto Fac Low Low Zio Dee Pro Fac Low Low Dat Pro Fac Ext Cet Arc Hub Fac Was Fac Arm Lab Res Qua Sec Res Acc Com Slots Evolved 18 | . . . 2 . . . 2 . 2 . . . . . 2 . . . . 2 . . . . 2 . . . . 2 . . 2 2 . Power . | . . . . . . . . . . . . . . . . . . . . . . . . . . . . . . . . . . . . Propulsion 2 | . . . . . . . 1 . . . . . . . 1 . . . . . . . . . . . . . . . . . . . . Utility 15 | . . . 2 . . . 1 . 2 . . . . . 1 . . . . 2 . . . . 2 . . . . 2 . . 1 2 . Weapon 1 | . . . . . . . . . . . . . . . . . . . . . . . . . . . . . . . . . 1 . . Parts Attached 523 | . 3 . 9 3 1 1 1 12 9 3 15 24 43 11 10 7 . 2 11 25 16 7 4 . 37 2 42 55 4 33 36 52 17 9 19 Power 18 | . . . 1 . . 1 . 1 . . 1 2 . . 1 . . . 2 . 2 . . . 1 . . 2 . . 2 . . . 2 Engine 3 | . . . . . . . . 1 . . . 1 . . . . . . 1 . . . . . . . . . . . . . . . . Core 6 | . . . 1 . . 1 . . . . 1 . . . . . . . . . 1 . . . 1 . . 1 . . . . . . . Reactor 9 | . . . . . . . . . . . . 1 . . 1 . . . 1 . 1 . . . . . . 1 . . 2 . . . 2 Propulsion 70 | . . . 2 . 1 . . 7 1 . 1 3 8 1 3 . . . . 6 3 1 . . 4 . 4 10 . 1 6 . 4 . 4 Treads 21 | . . . 2 . 1 . . 5 1 . 1 . . . . . . . . 4 3 1 . . . . . 1 . . . . . . 2 Leg 12 | . . . . . . . . . . . . 3 3 1 3 . . . . 2 . . . . . . . . . . . . . . . Wheel 2 | . . . . . . . . 2 . . . . . . . . . . . . . . . . . . . . . . . . . . . Hover 35 | . . . . . . . . . . . . . 5 . . . . . . . . . . . 4 . 4 9 . 1 6 . 4 . 2 Flight . | . . . . . . . . . . . . . . . . . . . . . . . . . . . . . . . . . . . . Utility 263 | . 2 . 2 3 . . 1 1 3 1 5 10 23 6 2 . . . 5 9 6 2 2 . 21 2 31 32 1 24 17 34 7 5 6 Device 148 | . . . 1 1 . . . . . . 2 4 19 . 1 . . . 1 3 3 . 2 . 9 . 21 21 . 13 11 24 7 2 3 Storage 33 | . 2 . 1 2 . . . . . 1 . . 2 2 1 . . . 1 1 1 . . . 5 . 2 3 . 3 2 2 . . 2 Processor 8 | . . . . . . . . . . . 1 2 . . . . . . 1 1 . . . . . . 1 2 . . . . . . . Hackware 11 | . . . . . . . . . . . . . . . . . . . . 2 . . . . 2 2 . 1 . 4 . . . . . Protection 63 | . . . . . . . 1 1 3 . 2 4 2 4 . . . . 2 2 2 2 . . 5 . 7 5 1 4 4 8 . 3 1 Artifact . | . . . . . . . . . . . . . . . . . . . . . . . . . . . . . . . . . . . . Weapon 172 | . 1 . 4 . . . . 3 5 2 8 9 12 4 4 7 . 2 4 10 5 4 2 . 11 . 7 11 3 8 11 18 6 4 7 Energy Gun 12 | . 1 . 4 . . . . . . . . . 1 . . . . . . . . . . . . . . . 2 2 2 . . . . Energy Cannon 39 | . . . . . . . . 1 . . . 1 1 2 2 2 . . 1 6 3 . . . 5 . 1 4 . 2 1 5 . 1 1 Ballistic Gun 22 | . . . . . . . . 1 2 . . 3 3 . 1 3 . . 2 2 . 2 . . . . 1 2 . . . . . . . Ballistic Cannon 19 | . . . . . . . . . 1 . 1 . 1 . . . . . . . 1 2 2 . 3 . . . . . 2 2 1 1 2 Launcher 38 | . . . . . . . . . 1 1 3 . 3 1 1 2 . . 1 2 1 . . . 1 . 1 2 1 1 3 7 4 . 2 Special Weapon 8 | . . . . . . . . . . . 1 2 . . . . . 2 . . . . . . . . 2 . . . . . . . 1 Impact Weapon . | . . . . . . . . . . . . . . . . . . . . . . . . . . . . . . . . . . . . Slashing Weapon 8 | . . . . . . . . 1 1 1 3 . . . . . . . . . . . . . 2 . . . . . . . . . . Piercing Weapon 25 | . . . . . . . . . . . . 2 3 1 . . . . . . . . . . . . 2 3 . 3 3 4 1 2 1 Special Melee Weapon 1 | . . . . . . . . . . . . 1 . . . . . . . . . . . . . . . . . . . . . . . Unidentified Prototypes 30 | . . . . . . . . . . . 2 3 7 . 2 . . . . 2 . 2 . . . 1 1 . 3 . 3 1 . . 3 Parts Lost 73 | . 1 . 5 . . 1 . 6 1 . 5 9 4 3 3 . . . 2 1 3 . . 2 4 . 2 9 . . 1 2 6 . 3 Power 10 | . . . 1 . . 1 . 1 . . 1 2 . . 1 . . . 1 . 1 . . . . . . 1 . . . . . . . Propulsion 18 | . . . 1 . . . . 2 . . 1 3 4 1 2 . . . . . . . . . . . . 1 . . 1 . 2 . . Utility 28 | . . . . . . . . 1 1 . 2 3 . 1 . . . . 1 1 2 . . 2 . . 1 5 . . . 2 3 . 3 Weapon 17 | . 1 . 3 . . . . 2 . . 1 1 . 1 . . . . . . . . . . 4 . 1 2 . . . . 1 . . Highest Loss Streak 9 | . 1 . 3 . . 1 . 5 1 . 4 9 2 1 3 . . . 2 1 3 . . 2 1 . 1 8 . . 1 1 3 . 1 Average Slot Usage (%) 94 | . 97 100 91 100 100 100 81 96 96 91 81 97 97 89 91 96 100 100 94 91 93 89 92 92 90 94 98 87 93 96 97 95 85 94 85 Engine 1 | . 14 14 5 . . . . 6 7 7 1 . . . . . . . . . . . . . . . . . . . . . . . . Core 2 | . . . 5 11 11 11 9 2 . . 4 5 . . . . . . . . 1 5 5 5 5 5 5 2 . . . . . . . Reactor 2 | . . . . . . . . . . . . 1 7 7 5 6 6 6 5 5 2 . . . . . . 2 5 4 3 4 4 3 3 Treads 8 | . . . 17 22 22 22 18 22 23 23 22 17 . . . . . . . 7 22 18 17 17 10 . . . . . . . . . 1 Leg 6 | . 28 28 4 . . . . . . . . 3 17 21 24 26 26 26 26 14 . . . . . . . . . . . . . . . Hover 6 | . . . . . . . . . . . . . 4 . . . . . . . . . . . 6 21 20 19 21 18 17 18 18 19 15 Device 8 | . . . 5 11 11 11 9 9 4 . . 1 10 8 12 13 13 13 10 5 6 5 9 9 6 10 8 7 11 6 8 11 19 26 25 Storage 23 | . 26 28 31 33 33 33 27 27 23 24 30 28 25 27 23 26 26 26 23 28 27 23 23 23 21 21 18 16 21 18 18 18 14 11 14 Processor 4 | . . . . . . . . . . . . 9 7 . . . . . 2 3 5 5 5 5 5 5 7 11 10 9 9 9 8 7 7 Hackware 6 | . . . . . . . . . . . . . . . . . . . . 5 8 5 5 5 9 10 15 12 5 21 19 17 8 3 3 Protection 8 | . . . . . . . . 8 22 21 5 12 7 16 15 13 13 13 12 8 4 10 11 11 15 15 10 5 10 7 8 6 5 10 4 Energy Gun 4 | . 26 28 21 22 22 22 18 2 . . . . . . . . . . . . . . . . . . . . . 1 . . . . . Energy Cannon 1 | . . . . . . . . . . . . . . 3 5 1 . . . 4 3 . . . 2 . . . . . . . . 2 . Ballistic Gun 1 | . . . . . . . . 8 4 2 . 4 4 1 . 4 13 10 10 2 . 7 . . . . 2 1 . . . . . . . Ballistic Cannon 1 | . . . . . . . . . 3 5 1 . 1 . . . . . . . 2 3 11 11 3 . . . . . . . 1 . 4 Slashing Weapon 1 | . . . . . . . . 6 6 1 7 5 . . . . . . . . . . . . 1 5 2 . . . . . . . . Piercing Weapon 1 | . . . . . . . . . . . . 1 5 . . . . . . . . . . . . . 2 4 5 4 3 2 . 2 1 Naked Turns . | . . . . . . . . . . . . . . . . . . . . . . . . . . . . . . . . . . . . Heaviest Build 133 | 13 57 57 68 68 61 61 64 71 92 92 85 86 106 94 83 80 73 77 89 97 113 114 107 107 119 60 72 92 103 123 120 124 126 122 133 Greatest Support 144 | 20 20 20 40 40 40 40 40 66 66 66 72 72 84 70 86 86 86 86 86 108 108 134 134 134 134 62 97 128 128 128 128 128 144 122 122 Greatest Overweight (x) 25 | . 2 2 3 1 1 1 1 5 1 1 1 25 3 1 1 . . . 1 2 1 1 . . 2 . 1 1 . 1 1 . 1 . 1 Average Overweight (x) . | . 1 2 1 1 1 1 1 1 . 1 . 1 . 1 . . . . . . . . . . . . . . . . . . . . . Largest Inventory Capacity 28 | . 18 18 22 24 22 22 22 22 22 22 22 22 22 22 20 20 20 20 20 24 28 28 28 28 28 20 20 22 22 28 28 28 28 22 22 Average Capacity 22 | . 15 18 21 22 22 22 22 22 22 22 22 22 22 21 18 20 20 20 20 23 24 28 28 28 27 20 20 19 22 26 27 28 25 22 22 Most Carried 28 | . 18 18 22 22 22 22 22 22 22 21 22 22 22 22 20 20 20 20 20 24 25 28 28 27 28 20 20 22 22 28 28 28 23 22 22 Average Carried 21 | . 9 17 19 21 21 21 21 20 21 20 20 21 21 20 17 19 20 20 18 21 23 26 26 27 26 19 19 18 21 25 27 27 20 21 20 Final Capacity 28 | 6 18 18 22 22 22 22 22 22 22 22 22 22 22 16 20 20 20 20 20 24 28 28 28 28 20 20 20 22 22 28 28 28 22 22 22 Final Carried 28 | 6 18 18 22 22 22 21 21 22 21 20 22 22 21 16 20 20 20 20 18 23 25 27 27 27 20 20 18 21 21 28 28 22 22 22 21 Class Distribution -------------------- 25% | Scavenger-Mutant 25% | Hauler-Mutant 12% | Wizard-Mutant 12% | Hacker-Mutant 8% | Wizard-Scout 5% | Mutant 3% | Commander-Mutant Dominant Class ---------------- Mutant | -10/Materials Mutant | -10/Mines Hauler-Mutant | -9/Materials Hauler-Mutant | -9/Mines Hauler-Mutant | -9/Exiles Hauler-Mutant | -8/Mines Hauler-Mutant | -8/Materials Hauler-Mutant | -8/Storage Hauler-Mutant | -7/Factory Hauler-Mutant | -7/Lower Caves Hauler-Mutant | -7/Lower Caves Hauler-Mutant | -7/Zion Scavenger-Mutant | -7/Deep Caves Scavenger-Mutant | -6/Proximity Caves Scavenger-Mutant | -6/Factory Scavenger-Mutant | -6/Lower Caves Scavenger-Mutant | -6/Lower Caves Scavenger-Mutant | -6/Data Miner Scavenger-Mutant | -5/Proximity Caves Scavenger-Mutant | -5/Factory Hacker-Mutant | -5/Extension Scavenger-Mutant | -5/Cetus Scavenger-Mutant | -5/Archives Scavenger-Mutant | -5/Hub_04(d) Hacker-Mutant | -4/Factory Hacker-Mutant | -4/Waste Wizard-Mutant | -4/Factory Hacker-Mutant | -4/Armory Machinist-Scout | -4/Lab Wizard-Scout | -3/Research Wizard-Scout | -3/Quarantine Wizard-Scout | -3/Section 7 Hacker-Scout | -2/Research Alien-Ninja | -1/Access Alien-Ninja | -1/Command Resources | -11 -10 -10 -9 -9 -9 -8 -8 -8 -7 -7 -7 -7 -7 -6 -6 -6 -6 -6 -5 -5 -5 -5 -5 -5 -4 -4 -4 -4 -4 -3 -3 -3 -2 -1 -1 ----------- Run | Scr Mat Min Mat Min Exi Min Mat Sto Fac Low Low Zio Dee Pro Fac Low Low Dat Pro Fac Ext Cet Arc Hub Fac Was Fac Arm Lab Res Qua Sec Res Acc Com Matter Collected 10335 | 200 20 10 80 . . 45 10 170 191 100 202 280 242 375 120 123 . . 402 260 326 529 118 . 1170 . 490 764 . 532 459 1445 807 27 838 Remotely . | . . . . . . . . . . . . . . . . . . . . . . . . . . . . . . . . . . . . Salvage Created 15983 | . 385 51 381 . . 102 84 400 327 63 457 376 639 630 592 81 . . 394 783 348 271 181 191 1177 . 1074 720 . 848 805 2300 1148 41 1134 Parts 732 | . 21 1 37 . . 5 5 26 17 4 19 34 25 24 29 10 . . 20 36 13 7 13 18 51 . 54 40 . 38 15 94 58 8 10 Haulers Intercepted 7 | . 2 . . . . . . . . . 1 . . . . . . . . . . . . . . . . . . 1 1 2 . . . Recyclers Shooed 5 | . . . . . . . . 1 1 . . . . . . . . . . . . . . . 1 . . . . 1 1 . . . . Parts Field Recycled . | . . . . . . . . . . . . . . . . . . . . . . . . . . . . . . . . . . . . Retrieved Matter . | . . . . . . . . . . . . . . . . . . . . . . . . . . . . . . . . . . . . Parts Self-Destructed 35 | . . . . . . . . . . 4 14 . . 4 . 5 4 . 4 . . . . . . . . . . . . . . . . Prevented 20 | . . . . . . . . . . . 1 . . 11 . . . . 8 . . . . . . . . . . . . . . . . Kills | -11 -10 -10 -9 -9 -9 -8 -8 -8 -7 -7 -7 -7 -7 -6 -6 -6 -6 -6 -5 -5 -5 -5 -5 -5 -4 -4 -4 -4 -4 -3 -3 -3 -2 -1 -1 ------- Run | Scr Mat Min Mat Min Exi Min Mat Sto Fac Low Low Zio Dee Pro Fac Low Low Dat Pro Fac Ext Cet Arc Hub Fac Was Fac Arm Lab Res Qua Sec Res Acc Com Combat Hostiles Destroyed 235 | . 5 1 11 . . 4 2 7 6 6 10 4 9 12 6 7 . . 10 14 7 1 1 1 14 . 16 15 . 11 5 28 16 . 6 Melee 29 | . . . . . . . . 1 . . 2 1 2 . . . . . . . . . . . . . 11 7 . 3 . 1 . . 1 Guns 41 | . 5 1 11 . . 4 2 4 2 . . 3 2 2 1 . . . 1 1 . . . . . . . 2 . . . . . . . Cannons 45 | . . . . . . . . 2 2 . 1 . . 5 1 . . . . 7 1 1 1 . 8 . 1 1 . 1 2 4 4 . 3 AOE 81 | . . . . . . . . . 2 6 6 . 2 4 1 6 . . 8 5 5 . . 1 1 . 4 2 . 5 2 13 8 . . Classes Destroyed 26 | . 4 . 4 . . 1 . . 3 . . 1 3 2 1 . . . 1 . . . . . 1 . . 1 . 1 . 3 . . . Worker 11 | . . . . . . . . . 1 . . . . . . . . . . . . . . 4 1 . 3 . . . . 2 . . . Builder 8 | . . . . . . . . . . . . . . . 1 . . . . 1 . . . 1 2 . . . . . . 1 . 2 . Tunneler 1 | . . . . . . . . . . . . . . . . . . . . . . . . . . . . . . 1 . . . . . Hauler 7 | . 2 . . . . . . . . . 1 . . . . . . . . . . . . . . . . . . 1 1 2 . . . Recycler 9 | . . . . . . . . . 1 . . . . . 1 . . . . 1 . . . . 1 . 1 . . 1 1 1 . . 1 Carrier 3 | . . . . . . . . . . . . . . . . . . . . . . . . . . . . . . . . 3 . . . Mechanic 1 | . . . . . . . . . . . . . . . . . . . . . . . . . 1 . . . . . . . . . . Operator 7 | . 1 . 1 . . . . 1 . . . . . . . . . . . . . . 3 . . . . . . . . 1 . . . Watcher 17 | . 1 . 2 . . . . 1 2 . . . . . 1 . . . . . 1 . . . 1 . 2 1 . . 3 1 1 . . Swarmer 52 | . . . 4 . . . . . . 6 . . . 2 . 6 . . . 5 5 . . . . . . 3 . 5 . 7 6 . 3 Grunt 59 | . 5 1 4 . . 2 . 2 5 . 7 . . 1 . . . . 7 . . 1 . . 1 . 5 4 . . 5 8 1 . . Brawler 1 | . . . . . . . . . . . . . . 1 . . . . . . . . . . . . . . . . . . . . . Duelist 10 | . . . 1 . . 1 . . . . 1 . . 2 . . . . . . . . . . . . . 3 . . . . 2 . . Researcher 2 | . . . . . . . . . . . . . . . . . . . . . . . . . . . . . . . . 2 . . . Sentry 42 | . . . 2 . . . 2 3 . . 1 . . 2 3 . . . . 3 2 . 1 1 4 . . . . 6 . 9 3 . . Demolisher 1 | . . . . . . . . . . . . . . . . . . . . . . . . . . . . 1 . . . . . . . Hunter 18 | . . . . . . 1 . 2 . . 1 . . 1 2 . . . 1 2 . . . . 5 . . . . . . 1 2 . . Programmer 30 | . . . . . . . . . 1 . . . . . 1 . . . 1 4 . . . . 4 . 11 4 . . . 1 2 . 1 Behemoth 1 | . . . . . . . . . . . . . . . . . . . 1 . . . . . . . . . . . . . . . . S7 Guard 1 | . . . . . . . . . . . . . . . . . . . . . . . . . . . . . . . . 1 . . . Executioner 1 | . . . . . . . . . . . . . . . . . . . . . . . . . . . . . . . . 1 . . . Zionite 7 | . . . 1 . . . . . . . . 6 . . . . . . . . . . . . . . . . . . . . . . . Z-Light 2 | . . . . . . . . . . . . . 2 . . . . . . . . . . . . . . . . . . . . . . Master Thief 4 | . . . . . . . . . . . . . . 3 . 1 . . . . . . . . . . . . . . . . . . . Assembled 3 | . . . . . . . . . . . . . 3 . . . . . . . . . . . . . . . . . . . . . . Golem 3 | . . . . . . . . . . . . . 3 . . . . . . . . . . . . . . . . . . . . . . Wasp 1 | . . . . . . . . . . . . 1 . . . . . . . . . . . . . . . . . . . . . . . Thug 2 | . . . . . . . . . . . . . . . . . . . . . 1 1 . . . . . . . . . . . . . Savage 1 | . . . . . . . . . . . . . . . . . . . . . . 1 . . . . . . . . . . . . . Guerrilla 1 | . . . . . . . . . . . . . . . . . . . . . . 1 . . . . . . . . . . . . . Wizard 1 | . . . . . . . . . . . . 1 . . . . . . . . . . . . . . . . . . . . . . . Mutant 1 | . . . . . . . . . . . . 1 . . . . . . . . . . . . . . . . . . . . . . . Best Kill Streak 16 | . 2 1 7 . . 2 2 2 4 3 6 3 3 5 3 3 . . 8 6 5 1 2 6 5 . 6 3 . 6 4 16 7 2 3 Combat Bots Only 11 | . 2 1 6 . . 2 2 2 3 3 5 1 3 5 2 3 . . 8 4 5 1 1 1 3 . 4 3 . 5 2 11 7 . 2 Max Kills in Single Turn 11 | . 1 1 2 . . 1 1 2 2 3 2 1 2 2 1 3 . . 3 3 5 1 1 5 2 . 2 1 . 4 1 11 2 1 1 Gunslinging 1 | . . . 1 . . . . . . . . . . . . . . . . . . . . . . . . . . . . . . . . Exploded 6 | . . . . . . . . . 1 3 2 . 2 2 1 3 . . 3 3 5 . . 1 1 . 2 1 . 3 1 6 2 . . Melee 1 | . . . . . . . . 1 . . 1 1 1 . . . . . . . . . . . . . 1 1 . 1 . 1 . . 1 Uniques/NPCs Destroyed 5 | . . . . . . . . . . . . 1 1 . . . . . 1 . . 1 . . . . . . . . . . . . 1 NK-0LA (-7/Zion) Z-Imprinter (-7/Deep Caves) Data Miner (-5/Proximity Caves) A7 (-5/Cetus) MAIN.C Shell (-1/Command) MAIN.C (-1/Command) Combat | -11 -10 -10 -9 -9 -9 -8 -8 -8 -7 -7 -7 -7 -7 -6 -6 -6 -6 -6 -5 -5 -5 -5 -5 -5 -4 -4 -4 -4 -4 -3 -3 -3 -2 -1 -1 -------- Run | Scr Mat Min Mat Min Exi Min Mat Sto Fac Low Low Zio Dee Pro Fac Low Low Dat Pro Fac Ext Cet Arc Hub Fac Was Fac Arm Lab Res Qua Sec Res Acc Com Damage Taken 22143 | . 274 76 488 . . 238 128 749 364 121 967 1724 942 358 512 113 . . 663 903 790 56 . 923 1995 . 840 2861 . 655 188 2589 959 21 1646 Core 3702 | . 51 14 80 . . 62 . 118 68 . 154 229 131 92 30 15 . . 149 18 143 . . 61 55 . 280 588 . 221 23 650 236 21 213 Absorbed by Shields 1716 | . . . . . . . . . . . . 241 545 40 . . . . . 36 95 31 . . . . 111 118 . . . 208 . . 291 Reduced by Siege Mode 141 | . . . . . . . . . . . . . . . . . . . . . . . . . 38 . . . . . . . . . 103 Core Remaining (%) 62 | 100 . 74 . . . 64 . 78 . . . . . 3 . . . . 77 . . . . 77 . . . . 19 . . 29 76 . 85 Volleys Fired 611 | . 29 4 28 . . 11 3 20 11 5 26 15 19 16 21 15 . 1 42 60 18 23 9 4 56 . 5 33 . 10 11 41 33 7 35 Largest 2 | . 2 2 2 . . 2 2 2 2 1 2 1 2 1 1 1 . 1 2 2 2 2 2 2 2 . 1 1 . 1 2 2 2 1 2 Hottest 240 | . 80 90 130 . . 130 130 97 76 30 81 28 110 110 110 110 . . 110 120 147 114 114 114 162 . 110 110 . 240 110 110 98 80 150 Shots Fired 845 | . 55 8 56 . . 22 6 33 19 5 27 16 26 31 21 15 . 1 56 65 24 46 18 8 67 . 6 33 . 10 16 49 39 7 60 Gun 332 | . 55 8 56 . . 22 6 29 8 . . 15 12 15 5 7 . . 28 10 . 37 . . . . 1 17 . 1 . . . . . Cannon 355 | . . . . . . . . 4 8 . 4 . 8 13 16 4 . . 4 47 23 9 18 8 63 . 1 10 . 7 6 28 13 7 54 Launcher 129 | . . . . . . . . . 3 5 13 . 6 3 . 4 . . 9 8 1 . . . 4 . 4 6 . 2 10 21 26 . 4 Special 29 | . . . . . . . . . . . 10 1 . . . . . 1 15 . . . . . . . . . . . . . . . 2 Kinetic 354 | . . . . . . . . 20 16 . 4 15 12 15 5 7 . . 28 10 9 46 18 8 40 . 1 17 . . 4 6 13 7 53 Thermal 158 | . . 4 49 . . 22 6 9 . . 10 . . . . . . . 15 34 7 . . . . . . . . 1 . 1 . . . Explosive 45 | . . . . . . . . . 3 5 8 . 2 . . 4 . . 9 2 1 . . . . . 4 5 . 2 . . . . . Electromagnetic 284 | . 55 4 7 . . . . 4 . . 5 . 12 16 16 4 . . 4 19 7 . . . 27 . 1 11 . 7 12 42 26 . 5 Robot Hit Streak 24 | . 5 5 22 . . 7 16 6 9 1 16 18 5 14 5 4 . 3 12 13 15 13 16 2 24 . 8 8 . 10 16 9 5 . 22 Robot Miss Streak 7 | . 3 1 7 . . 3 2 3 4 1 3 6 7 4 4 6 . . 3 5 5 4 1 2 4 . 1 6 . 3 2 6 2 . 1 Penetration Max 1 | . . . . . . . . 1 . . . . . . . . . . . . . 1 . . 1 . . . . . . . . . . Secondary Targets 3 | . . . 2 . . . 1 . . . . . . . . . . . . . . . . . . . . . . . . . . . . Max Gunslinging Chain 1 | . . . 1 . . . 1 . . . . . . . . . . . . . . . . . . . . . . . . . . . . Capacitor 4 | . . . . . . . . . . . . . . . . . . . . . . . . . . . . 4 . . . . . . . Autonomous 20 | . . . . . . . . . . . . . 5 15 . . . . . . . . . . . . . . . . . . . . . Shots Hit Robots 708 | . 31 7 52 . . 21 6 32 15 6 28 31 28 29 19 8 . 1 29 31 6 29 10 4 44 . 50 40 . 23 14 39 19 4 52 Core Hits 643 | . 13 2 53 . . 31 12 19 25 9 27 25 26 23 11 10 . . 26 29 14 13 4 12 28 . 35 32 . 20 14 70 36 2 22 Critical Hits 53 | . . . . . . . . 1 . 1 . . . 1 . . . . 2 1 . 5 9 1 13 . 4 6 . 3 3 . 1 . 2 Critical Kills 17 | . . . . . . . . 1 . . . . . . . . . . . . . 1 4 . 3 . 2 1 . 2 2 . 1 . . Critical Parts Destroyed 27 | . . . . . . . . . . 1 . . . 1 . . . . 1 1 . 2 5 1 8 . 2 3 . . 1 . . . 1 Melee Attacks 327 | . . . . . . . . 12 1 6 8 21 30 1 . . . . . . . . . . 6 . 71 35 3 59 19 30 1 20 4 Impact . | . . . . . . . . . . . . . . . . . . . . . . . . . . . . . . . . . . . . Slashing 74 | . . . . . . . . 12 1 6 8 15 . . . . . . . . . . . . 6 . 26 . . . . . . . . Piercing 251 | . . . . . . . . . . . . 4 30 1 . . . . . . . . . . . . 45 35 3 59 19 30 1 20 4 Sneak Attacks 17 | . . . . . . . . . . . 1 . . . . . . . . . . . . . 1 . 2 1 . 2 4 1 . 3 2 Combat Hostiles 1 | . . . . . . . . . . . . . . . . . . . . . . . . . . . . 1 . . . . . . . Follow-up Attacks . | . . . . . . . . . . . . . . . . . . . . . . . . . . . . . . . . . . . . Damage Inflicted 49220 | . 545 80 581 . . 288 101 732 1000 552 1151 791 1119 1293 965 811 . . 2428 2431 714 962 221 956 1990 . 3005 2747 . 2023 1584 13050 2897 555 3648 Guns 4606 | . 463 80 581 . . 288 101 414 170 . . 295 96 395 116 98 . . 221 105 . 786 . . . . . 397 . . . . . . . Cannons 11825 | . . . . . . . . 62 88 . 109 . 420 530 771 147 . . 208 1023 411 176 221 42 1437 . 117 539 . 505 173 1203 629 . 3014 Explosions 25748 | . 82 . . . . . . . 710 422 733 . 333 368 78 566 . . 1909 1303 303 . . 914 466 . 856 1078 . 668 822 11685 2168 . 284 Melee 6875 | . . . . . . . . 256 32 130 233 496 270 . . . . . . . . . . . 87 . 2032 733 . 850 589 162 100 555 350 Ramming . | . . . . . . . . . . . . . . . . . . . . . . . . . . . . . . . . . . . . Kinetic 8039 | . . . . . . . . 297 258 . 109 295 96 395 116 98 . . 221 105 21 962 221 42 813 . . 397 . . . . 629 . 2964 Thermal 12420 | . 82 39 491 . . 288 101 117 . . 196 . 79 244 78 . . . 168 739 31 . . . 82 . 100 142 . . . 9303 140 . . Explosive 7686 | . . . . . . . . . 710 422 454 . 88 . . 566 . . 1831 867 303 . . . . . 756 904 . 668 58 . 59 . . Electromagnetic 14165 | . 463 41 90 . . . . 62 . . 159 . 586 654 771 147 . . 208 720 359 . . 914 1008 . 117 571 . 505 937 3550 1969 . 334 Impact . | . . . . . . . . . . . . . . . . . . . . . . . . . . . . . . . . . . . . Slashing 1980 | . . . . . . . . 256 32 130 233 409 . . . . . . . . . . . . 87 . 833 . . . . . . . . Piercing 4895 | . . . . . . . . . . . . 87 270 . . . . . . . . . . . . . 1199 733 . 850 589 162 100 555 350 Entropic 35 | . . . . . . . . . . . . . . . . . . . . . . . . . . . . . . . . 35 . . . Highest Corruption 14 | . . . . . . . 2 2 . . . 14 14 . . . . . 1 2 10 9 9 1 9 13 13 5 3 . . 1 1 . 1 Average Corruption 4 | . . . . . . . 1 2 . . . 5 6 . . . . . 1 1 5 9 6 1 5 11 6 3 3 . . 1 1 . 1 Corruption Purged 44 | . . . . . . . . . . . . . 14 . . . . . . . 1 . 9 . 3 . 15 2 . . . . . . . Effects 197 | . . . . . . . . 14 . . . 17 13 . . . . . . 9 22 13 17 . 15 1 37 34 4 . . 1 . . . Message Errors 54 | . . . . . . . . 6 . . . 6 6 . . . . . . 5 3 3 2 . 5 1 2 14 1 . . . . . . Matter Fused 43 | . . . . . . . . . . . . . 1 . . . . . . . 4 3 4 . 6 . 13 11 1 . . . . . . Heat Flow Errors 24 | . . . . . . . . 3 . . . 1 3 . . . . . . . 2 3 6 . . . 3 3 . . . . . . . Energy Discharges 12 | . . . . . . . . . . . . . . . . . . . . . 1 . 3 . . . 5 1 2 . . . . . . Data Loss (minor) 17 | . . . . . . . . 3 . . . 2 . . . . . . . 1 3 . 1 . 1 . 4 2 . . . . . . . Data Loss (major) 7 | . . . . . . . . . . . . 1 2 . . . . . . . . . 1 . 1 . 2 . . . . . . . . Misfires 4 | . . . . . . . . . . . . 1 1 . . . . . . . . 1 . . . . 1 . . . . . . . . Alerts 3 | . . . . . . . . . . . . . . . . . . . . . 3 . . . . . . . . . . . . . . Misdirections 10 | . . . . . . . . . . . . 4 . . . . . . . . 3 . . . . . 3 . . . . . . . . Targeting Errors 20 | . . . . . . . . 2 . . . 2 . . . . . . . 2 2 2 . . 2 . 4 3 . . . 1 . . . Weapon Failures 3 | . . . . . . . . . . . . . . . . . . . . 1 1 1 . . . . . . . . . . . . . Overload Shots 1 | . . . . . . . . . . . . . . . . . . . . . . . . . . . . . . 1 . . . . . Overflow Damage 2117 | . 31 . . . . . . 6 50 26 16 28 . . . 9 . . 85 168 3 1 . 16 82 . 244 17 . 46 134 692 82 210 171 Projectiles 105 | . . . . . . . . . . . . . . . . 1 . . . 22 . 1 . . 2 . . . . . . . 79 . . Explosions 1358 | . 31 . . . . . . . 50 23 16 . . . . 8 . . 85 146 3 . . 16 63 . 66 14 . 46 92 692 3 . 4 Melee 654 | . . . . . . . . 6 . 3 . 28 . . . . . . . . . . . . 17 . 178 3 . . 42 . . 210 167 Knockbacks 13 | . . . . . . . . . . . 1 . . . . . . . . . 1 . 1 1 2 . . . . . . . 4 . 3 Impact . | . . . . . . . . . . . . . . . . . . . . . . . . . . . . . . . . . . . . Kinetic 12 | . . . . . . . . . . . 1 . . . . . . . . . 1 . 1 1 2 . . . . . . . 3 . 3 Secondary 1 | . . . . . . . . . . . . . . . . . . . . . . . . . . . . . . . . . 1 . . Self-Inflicted Damage 1876 | . 39 . . . . . . . 39 . 121 . . 28 . 34 . . 35 17 10 . . 75 91 . . 43 . . . 1266 78 . . Shots 37 | . 1 . . . . . . . 1 . 7 . . 1 . 2 . . 1 1 1 . . 1 3 . . 1 . . . 10 7 . . Rammed . | . . . . . . . . . . . . . . . . . . . . . . . . . . . . . . . . . . . . Targets Rammed . | . . . . . . . . . . . . . . . . . . . . . . . . . . . . . . . . . . . . Kicked . | . . . . . . . . . . . . . . . . . . . . . . . . . . . . . . . . . . . . Crushed . | . . . . . . . . . . . . . . . . . . . . . . . . . . . . . . . . . . . . Highest Temperature 396 | . 207 117 226 . . 4 8 236 15 16 86 230 275 82 147 128 . . 48 192 157 182 229 . 396 . 253 250 54 253 104 306 57 38 37 Average Temperature 58 | . 63 54 50 . . 4 4 105 5 7 37 135 75 26 57 66 . . 19 41 28 87 87 . 86 . 69 65 16 90 54 51 27 23 13 Received Heat Transfer 2577 | . 129 42 117 . . 63 45 207 144 . 234 85 319 23 24 . . . 171 53 66 4 . . 75 . 72 225 . 99 81 133 126 . 40 Effects 4 | . . . . . . . . . . . . . . . . . . . . . . . 1 . 1 . . . . 2 . . . . . Energy Bleed 1 | . . . . . . . . . . . . . . . . . . . . . . . 1 . . . . . . . . . . . . Interference 2 | . . . . . . . . . . . . . . . . . . . . . . . . . . . . . . 2 . . . . . Matter Decay 1 | . . . . . . . . . . . . . . . . . . . . . . . . . 1 . . . . . . . . . . Siege Activations 5 | . . . . . . . . . . . . . . . . . . . . . . 2 1 . 1 . . . . . . . . . 1 Total Turns 110 | . . . . . . . . . . . . . . . . . . . . . . 14 12 . 41 . . . . . . . . . 43 Longest Duration 43 | . . . . . . . . . . . . . . . . . . . . . . 8 12 . 41 . . . . . . . . . 43 Robots Corrupted 43 | . . . . . . . . . . . . . 3 1 3 1 . . 1 1 1 . . . 6 . . 3 . 2 3 12 4 . 2 Combat Hostiles 38 | . . . . . . . . . . . . . 3 1 3 1 . . 1 1 1 . . . 5 . . 3 . 2 1 10 4 . 2 Parts Fried 135 | . 3 . . . . . . . . . . . 7 12 10 5 . . 1 5 6 . . . 9 . . 1 . 9 16 40 8 . 3 Impact Corruptions 1 | . . . . . . . . . . . . . . . . . . . . . . . . . . . . . . . . . 1 . . Robots Melted 1 | . . . . . . . . . . . 1 . . . . . . . . . . . . . . . . . . . . . . . . Combat Hostiles 1 | . . . . . . . . . . . 1 . . . . . . . . . . . . . . . . . . . . . . . . Parts Melted 8 | . . . 1 . . . . . . . 2 1 . . 1 . . . 1 1 . . . . . . . . . . . 1 . . . Heat Transferred 4847 | . 150 111 705 . . 365 130 150 . . 610 . 50 300 100 . . . 346 850 50 . . . 50 . 100 150 . . . 530 100 . . Parts Sabotaged . | . . . . . . . . . . . . . . . . . . . . . . . . . . . . . . . . . . . . Parts Stolen 7 | . . . . . . . . . . 1 1 . . 2 . 2 . . 1 . . . . . . . . . . . . . . . . Parts Stripped . | . . . . . . . . . . . . . . . . . . . . . . . . . . . . . . . . . . . . Power Chain Reactions 23 | . 2 . . . . . . . . . 1 . 1 4 2 . . . 2 1 . . . . 1 . 1 2 . . . 4 2 . . Missiles Intercepted . | . . . . . . . . . . . . . . . . . . . . . . . . . . . . . . . . . . . . Alert | -11 -10 -10 -9 -9 -9 -8 -8 -8 -7 -7 -7 -7 -7 -6 -6 -6 -6 -6 -5 -5 -5 -5 -5 -5 -4 -4 -4 -4 -4 -3 -3 -3 -2 -1 -1 ------- Run | Scr Mat Min Mat Min Exi Min Mat Sto Fac Low Low Zio Dee Pro Fac Low Low Dat Pro Fac Ext Cet Arc Hub Fac Was Fac Arm Lab Res Qua Sec Res Acc Com Peak Influence 3099 | . 89 65 342 102 . 70 117 176 263 . . . . . 269 . . . . 785 517 617 251 649 965 352 447 594 . 671 208 3099 2603 1779 1607 Average Influence 240 | . 44 13 218 54 . 23 24 56 66 . . . . . 138 . . . . 146 255 342 186 139 636 349 175 121 . 121 46 328 2037 1655 1392 Maximum Alert Level 5 | . . . 1 . . . . . 1 . . . . . 1 . . . . 3 2 2 1 2 3 1 2 2 . 2 1 5 5 5 5 Low Security (%) 67 | . 100 100 29 100 . 100 100 100 96 . . . . . 84 . . . . 76 36 2 31 82 . . 61 85 . 76 99 79 . . . Level 1 16 | . . . 70 . . . . . 3 . . . . . 15 . . . . 19 37 71 68 . 7 100 35 9 . 15 . 12 . . . Level 2 9 | . . . . . . . . . . . . . . . . . . . . . 25 25 . 17 74 . 2 5 . 7 . . . . . Level 3 1 | . . . . . . . . . . . . . . . . . . . . 4 . . . . 17 . . . . . . . . . . Level 4 1 | . . . . . . . . . . . . . . . . . . . . . . . . . . . . . . . . . . 7 83 Level 5 . | . . . . . . . . . . . . . . . . . . . . . . . . . . . . . . . . . 4 . 16 High Security . | . . . . . . . . . . . . . . . . . . . . . . . . . . . . . . . . . . . . Max Security 3 | . . . . . . . . . . . . . . . . . . . . . . . . . . . . . . . . 8 95 92 . Squads Dispatched 88 | . 1 . 3 . . . 1 . 1 . . . . . 1 . . . . 3 . 1 . 1 5 . 5 3 . 3 5 21 21 13 . Investigation 7 | . . . 2 . . . 1 . . . . . . . . . . . . . . 1 . . 1 . . . . . 1 . . 1 . Extermination 16 | . . . . . . . . . 1 . . . . . 1 . . . . 2 . . . . 1 . 3 2 . 2 2 2 . . . Reinforcement 14 | . 1 . 1 . . . . . . . . . . . . . . . . 1 . . . 1 1 . 1 . . 1 1 6 . . . Assault 47 | . . . . . . . . . . . . . . . . . . . . . . . . . 1 . 1 1 . . . 12 20 12 . Garrison 4 | . . . . . . . . . . . . . . . . . . . . . . . . . 1 . . . . . 1 1 1 . . Intercept . | . . . . . . . . . . . . . . . . . . . . . . . . . . . . . . . . . . . . Construction Impeded 1 | . . . . . . . . . . . . . . . . . . . . . . . . 1 . . . . . . . . . . . Haulers Reinforced 3 | . . . . . . . . . . . . . . . . . . . . . . . . . . . 1 . . . 1 1 . . . Stealth | -11 -10 -10 -9 -9 -9 -8 -8 -8 -7 -7 -7 -7 -7 -6 -6 -6 -6 -6 -5 -5 -5 -5 -5 -5 -4 -4 -4 -4 -4 -3 -3 -3 -2 -1 -1 --------- Run | Scr Mat Min Mat Min Exi Min Mat Sto Fac Low Low Zio Dee Pro Fac Low Low Dat Pro Fac Ext Cet Arc Hub Fac Was Fac Arm Lab Res Qua Sec Res Acc Com Distress Signals 37 | . 1 . 3 . . . . 2 2 . . . . . . . . . . 1 1 1 . . 1 . 1 1 . 1 1 4 . 1 16 Communications Jammed 11 | . . . . . . . . . . . . . . . . . . . . . . . . . . . . . . . . 5 . 6 . Distress Signals 11 | . . . . . . . . . . . . . . . . . . . . . . . . . . . . . . . . 5 . 6 . Times Spotted 503 | . 10 2 30 . . 4 3 13 13 8 12 24 9 14 7 7 . . 13 25 22 16 4 4 18 6 31 32 . 21 10 50 52 24 19 Peak Tracking Total 32 | . 3 2 6 . . 3 2 5 5 3 3 6 3 5 3 3 . . 9 6 5 5 . 3 4 6 9 6 . 7 3 12 18 32 4 Tactical Retreats 26 | . 1 . 1 . . . . . 1 . . 1 . . . . . . 1 2 . . . . . . 1 2 . 4 . 2 5 5 . Traps | -11 -10 -10 -9 -9 -9 -8 -8 -8 -7 -7 -7 -7 -7 -6 -6 -6 -6 -6 -5 -5 -5 -5 -5 -5 -4 -4 -4 -4 -4 -3 -3 -3 -2 -1 -1 ------- Run | Scr Mat Min Mat Min Exi Min Mat Sto Fac Low Low Zio Dee Pro Fac Low Low Dat Pro Fac Ext Cet Arc Hub Fac Was Fac Arm Lab Res Qua Sec Res Acc Com Traps Triggered 16 | . . . 1 . . . 2 2 . . . . . . . . . . . 2 2 . . . 3 . . . . 1 2 . 1 . . Indirectly . | . . . . . . . . . . . . . . . . . . . . . . . . . . . . . . . . . . . . Trap Hack Attempts . | . . . . . . . . . . . . . . . . . . . . . . . . . . . . . . . . . . . . Triggered . | . . . . . . . . . . . . . . . . . . . . . . . . . . . . . . . . . . . . Disarmed 19 | . . . . . . . . . . . . . . . . . . . . . 5 . . . . . . . . . 10 4 . . . Reprogrammed . | . . . . . . . . . . . . . . . . . . . . . . . . . . . . . . . . . . . . Reused . | . . . . . . . . . . . . . . . . . . . . . . . . . . . . . . . . . . . . Traps Extracted . | . . . . . . . . . . . . . . . . . . . . . . . . . . . . . . . . . . . . Installed . | . . . . . . . . . . . . . . . . . . . . . . . . . . . . . . . . . . . . Triggered 3 | . . . . . . . . . . . 2 . . . . . . . . . . . . . . . . . . . . . . . 1 Machines | -11 -10 -10 -9 -9 -9 -8 -8 -8 -7 -7 -7 -7 -7 -6 -6 -6 -6 -6 -5 -5 -5 -5 -5 -5 -4 -4 -4 -4 -4 -3 -3 -3 -2 -1 -1 ---------- Run | Scr Mat Min Mat Min Exi Min Mat Sto Fac Low Low Zio Dee Pro Fac Low Low Dat Pro Fac Ext Cet Arc Hub Fac Was Fac Arm Lab Res Qua Sec Res Acc Com Machines Disabled 85 | . . . . . . . . 2 2 . . . 2 2 . . . . . 2 . 3 3 14 1 . 1 3 1 3 5 35 3 . 3 Max in Single Turn 24 | . . . . . . . . 1 1 . . . 1 1 . . . . . 1 . . 1 9 1 . 1 2 1 1 1 24 1 . 1 Garrison Access 3 | . . . . . . . . . . . . . . . . . . . . . . . . . 1 . 2 . . . . . . . . Network Hub 2 | . . . . . . . . . . . . . . . . . . . . . . . . 2 . . . . . . . . . . . Machines Sabotaged . | . . . . . . . . . . . . . . . . . . . . . . . . . . . . . . . . . . . . Garrisons Compromised . | . . . . . . . . . . . . . . . . . . . . . . . . . . . . . . . . . . . . Overloaded Fab Kills . | . . . . . . . . . . . . . . . . . . . . . . . . . . . . . . . . . . . . Fab Network Shutdowns 4 | . . . . . . . . . . . . . . . . . . . . 1 . . . . 1 . . 1 . 1 . . . . . Hacking | -11 -10 -10 -9 -9 -9 -8 -8 -8 -7 -7 -7 -7 -7 -6 -6 -6 -6 -6 -5 -5 -5 -5 -5 -5 -4 -4 -4 -4 -4 -3 -3 -3 -2 -1 -1 --------- Run | Scr Mat Min Mat Min Exi Min Mat Sto Fac Low Low Zio Dee Pro Fac Low Low Dat Pro Fac Ext Cet Arc Hub Fac Was Fac Arm Lab Res Qua Sec Res Acc Com Machines Accessed 106 | . . . 1 1 1 1 2 8 1 . . . . 1 7 . . 4 . 5 10 3 . 2 5 . 6 6 . 8 14 15 1 1 3 Terminals 75 | . . . 1 . . 1 2 8 1 . . . . . 2 . . . . 4 10 3 . 2 1 . 2 4 . 3 13 14 . 1 3 Fabricators 9 | . . . . . . . . . . . . . . . 2 . . . . 1 . . . . 2 . 1 1 . 2 . . . . . Repair Stations 7 | . . . . . . . . . . . . . . . 2 . . . . . . . . . 1 . . 1 . 1 1 . 1 . . Recycling Units 1 | . . . . . . . . . . . . . . . . . . . . . . . . . . . . . . 1 . . . . . Scanalyzers 3 | . . . . . . . . . . . . . . . 1 . . . . . . . . . . . 1 . . 1 . . . . . Garrison Access 4 | . . . . . . . . . . . . . . . . . . . . . . . . . 1 . 2 . . . . 1 . . . Total Hacks 514 | . . . 1 1 1 2 4 16 5 . . . . 1 16 . . 26 . 17 58 9 . 9 33 . 44 71 . 68 51 63 2 8 8 Successful 344 | . . . 1 1 1 1 2 11 2 . . . . 1 7 . . 26 . 6 24 5 . 7 25 . 31 43 . 52 44 48 2 . 4 Failed 169 | . . . . . . 1 2 5 3 . . . . . 9 . . . . 11 34 4 . 2 8 . 13 28 . 16 6 15 . 8 4 Catastrophic 23 | . . . . . . . 2 1 . . . . . . 1 . . . . 1 5 2 . . . . . 1 . 2 2 2 . 3 1 Database Lockouts 3 | . . . . . . . . . . . . . . . . . . . . . . . . . . . . . . . 3 . . . . Manual 267 | . . . 1 . 1 2 3 10 1 . . 4 . . 4 . . . . 7 45 9 . 7 9 . 23 24 . 37 32 43 . . 5 Terminals 332 | . . . 1 . . 2 4 16 5 . . . . . 5 . . . . 13 58 9 . 9 5 . 22 30 . 34 41 62 . 8 8 Fabricators 94 | . . . . . . . . . . . . . . . 6 . . . . 4 . . . . 17 . 13 32 . 22 . . . . . Repair Stations 37 | . . . . . . . . . . . . . . . 3 . . . . . . . . . 7 . . 9 . 6 10 . 2 . . Recycling Units 2 | . . . . . . . . . . . . . . . . . . . . . . . . . . . . . . 2 . . . . . Scanalyzers 11 | . . . . . . . . . . . . . . . 2 . . . . . . . . . . . 5 . . 4 . . . . . Garrison Access 9 | . . . . . . . . . . . . . . . . . . . . . . . . . 4 . 4 . . . . 1 . . . Terminal Hacks 194 | . . . 1 1 1 1 2 6 1 . . . . 1 2 . . 26 . 3 22 4 . 6 3 . 10 16 . 20 29 37 . . 2 Record 14 | . . . . . . . 1 . . . . . . 1 . . . 11 . . . . . . . . . . . . 1 . . . . Part Schematic 20 | . . . . . . 1 . . . . . . . . . . . 4 . . 6 . . . . . 1 . . 5 1 2 . . . Robot Schematic 8 | . . . . . . . . . . . . . . . . . . 8 . . . . . . . . . . . . . . . . . Robot Analysis 13 | . . . . . . . . . . . . . . . . . . . . . 1 . . 2 . . . . . . 4 6 . . . Prototype ID Bank 8 | . . . . . . . . . . . . . . . . . . 3 . . . . . . . . 1 1 . . 2 1 . . . Open Door 17 | . . . . 1 . . . 3 . . . . . . . . . . . 1 7 . . . . . . . . . 1 3 . . 1 Level Access Points 6 | . . . . . . . . . 1 . . . . . . . . . . . . . . 1 . . . 2 . . . 2 . . . Branch Access Points 8 | . . . 1 . . . 1 1 . . . . . . 1 . . . . 1 . . . . 1 . 1 . . 1 . . . . . Emergency Access Points 1 | . . . . . . . . . . . . . . . . . . . . . . . . . . . . . . . 1 . . . . Machine Index 3 | . . . . . . . . . . . . . . . . . . . . . . . . . 1 . . . . . 1 1 . . . Terminal Index 1 | . . . . . . . . . . . . . . . . . . . . . 1 . . . . . . . . . . . . . . Fabricator Index 2 | . . . . . . . . . . . . . . . . . . . . . . . . . . . 1 . . 1 . . . . . Recycling Unit Index 1 | . . . . . . . . . . . . . . . . . . . . 1 . . . . . . . . . . . . . . . Scanalyzer Index 1 | . . . . . . . . . . . . . . . . . . . . . . . . . . . 1 . . . . . . . . Alert Level 9 | . . . . . . . . . . . . . . . . . . . . . 1 . . 1 . . 1 1 . . 2 2 . . 1 Unreport Threat 26 | . . . . . . . . 1 . . . . . . . . . . . . 5 3 . . . . . 4 . 6 2 5 . . . Locate Traps 14 | . . . . . . . . 1 . . . . . . 1 . . . . . . . . 1 . . 1 3 . 1 3 3 . . . Disarm Traps 5 | . . . . . . . . . . . . . . . . . . . . . 1 . . . . . . . . . 2 2 . . . Dispatch Records 8 | . . . . . . . . . . . . . . . . . . . . . . 1 . . . . . 1 . . 3 3 . . . Recall Investigation 1 | . . . . . . . . . . . . . . . . . . . . . . . . . . . . . . . 1 . . . . Recall Extermination 7 | . . . . . . . . . . . . . . . . . . . . . . . . . . . . 1 . 2 2 2 . . . Recall Reinforcements 5 | . . . . . . . . . . . . . . . . . . . . . . . . . . . . . . 1 1 3 . . . Hauler Manifests 6 | . . . . . . . . . . . . . . . . . . . . . . . . . 1 . 1 . . 2 1 1 . . . Registered Components 1 | . . . . . . . . . . . . . . . . . . . . . . . . . . . . . . . 1 . . . . Registered Prototypes 1 | . . . . . . . . . . . . . . . . . . . . . . . . . . . . 1 . . . . . . . Zone Layout 6 | . . . . . . . . . . . . . . . . . . . . . . . . 1 . . 2 2 . 1 . . . . . EX-Prototype ID Bank 1 | . . . . . 1 . . . . . . . . . . . . . . . . . . . . . . . . . . . . . . Activate Exoskeleton 1 | . . . . . . . . . . . . . . . . . . . . . . . . . . . . . . . . 1 . . . Fabricator Hacks 50 | . . . . . . . . . . . . . . . 2 . . . . 3 . . . . 10 . 7 15 . 13 . . . . . Network Status 5 | . . . . . . . . . . . . . . . . . . . . . . . . . 2 . 2 . . 1 . . . . . Load Schematic 23 | . . . . . . . . . . . . . . . 2 . . . . 2 . . . . 4 . 3 7 . 5 . . . . . Build 22 | . . . . . . . . . . . . . . . . . . . . 1 . . . . 4 . 2 8 . 7 . . . . . Repair Station Hacks 30 | . . . . . . . . . . . . . . . 1 . . . . . . . . . 6 . . 5 . 6 10 . 2 . . Scan Component 16 | . . . . . . . . . . . . . . . 1 . . . . . . . . . 3 . . 3 . 3 5 . 1 . . Repair 14 | . . . . . . . . . . . . . . . . . . . . . . . . . 3 . . 2 . 3 5 . 1 . . Recycling Unit Hacks 2 | . . . . . . . . . . . . . . . . . . . . . . . . . . . . . . 2 . . . . . Process 1 | . . . . . . . . . . . . . . . . . . . . . . . . . . . . . . 1 . . . . . Retrieve Matter 1 | . . . . . . . . . . . . . . . . . . . . . . . . . . . . . . 1 . . . . . Scanalyzer 10 | . . . . . . . . . . . . . . . 1 . . . . . . . . . . . 5 . . 4 . . . . . Insert Component 8 | . . . . . . . . . . . . . . . 1 . . . . . . . . . . . 3 . . 4 . . . . . Analyze 2 | . . . . . . . . . . . . . . . . . . . . . . . . . . . 2 . . . . . . . . Garrison Access Hacks 2 | . . . . . . . . . . . . . . . . . . . . . . . . . . . 2 . . . . . . . . Seal Access 2 | . . . . . . . . . . . . . . . . . . . . . . . . . . . 2 . . . . . . . . Unauthorized Hacks 56 | . . . . . . . . 5 1 . . . . . 1 . . . . . 2 1 . 1 6 . 7 7 . 7 5 11 . . 2 Terminals 39 | . . . . . . . . 5 1 . . . . . 1 . . . . . 2 1 . 1 1 . 2 6 . 2 5 10 . . 2 Track 14 | . . . . . . . . 4 . . . . . . . . . . . . . . . . . . . 3 . . 2 4 . . 1 Assimilate 4 | . . . . . . . . . . . . . . . . . . . . . . . . . . . . . . . 1 3 . . . Botnet 16 | . . . . . . . . 1 1 . . . . . 1 . . . . . 2 1 . 1 1 . 1 2 . 2 2 1 . . . Disrupt 3 | . . . . . . . . . . . . . . . . . . . . . . . . . . . . 1 . . . 1 . . 1 Operators 2 | . . . . . . . . . . . . . . . . . . . . . . . . . . . 1 . . . . 1 . . . Fabricators 14 | . . . . . . . . . . . . . . . . . . . . . . . . . 4 . 4 1 . 5 . . . . . Report 3 | . . . . . . . . . . . . . . . . . . . . . . . . . 1 . 1 . . 1 . . . . . Prioritize 5 | . . . . . . . . . . . . . . . . . . . . . . . . . 1 . 1 1 . 2 . . . . . Siphon 5 | . . . . . . . . . . . . . . . . . . . . . . . . . 2 . 1 . . 2 . . . . . Haulers 1 | . . . . . . . . . . . . . . . . . . . . . . . . . . . 1 . . . . . . . . Repair Stations . | . . . . . . . . . . . . . . . . . . . . . . . . . . . . . . . . . . . . Recycling Units . | . . . . . . . . . . . . . . . . . . . . . . . . . . . . . . . . . . . . Scanalyzers . | . . . . . . . . . . . . . . . . . . . . . . . . . . . . . . . . . . . . Garrison Access 3 | . . . . . . . . . . . . . . . . . . . . . . . . . 1 . 1 . . . . 1 . . . Watchers 2 | . . . . . . . . . . . . . . . . . . . . . . . . . . . 1 . . . . 1 . . . Jam 1 | . . . . . . . . . . . . . . . . . . . . . . . . . 1 . . . . . . . . . . Data Cores Recovered 2 | . . . . . . . . 1 . . . . . . . . . . . . . . . . . . . . . . . 1 . . . Used . | . . . . . . . . . . . . . . . . . . . . . . . . . . . . . . . . . . . . Hacking Detections 70 | . . . 1 . . . 1 7 1 . . . . . 7 . . . . 5 10 3 . 2 3 . 2 5 . 5 9 7 . 1 1 Full Trace Events 3 | . . . . . . . 1 . . . . . . . . . . . . . . 1 . . . . . . . . . . . 1 . Feedback Events . | . . . . . . . . . . . . . . . . . . . . . . . . . . . . . . . . . . . . Feedback Blocked . | . . . . . . . . . . . . . . . . . . . . . . . . . . . . . . . . . . . . Robot Schematics Acquired 8 | . . . . . . . . . . . . . . . . . . 8 . . . . . . . . . . . . . . . . . Robots Built . | . . . . . . . . . . . . . . . . . . . . . . . . . . . . . . . . . . . . Matter . | . . . . . . . . . . . . . . . . . . . . . . . . . . . . . . . . . . . . Time . | . . . . . . . . . . . . . . . . . . . . . . . . . . . . . . . . . . . . Total Robot Build Rating . | . . . . . . . . . . . . . . . . . . . . . . . . . . . . . . . . . . . . Part Schematics Acquired 21 | . . . . . . 1 . . . . . . . . . . . 4 . . 6 . . . . . 2 . . 5 1 2 . . . Parts Built 22 | . . . . . . . . . . . . . . . . . . . . 1 . . . . 4 . 3 8 . 6 . . . . . Matter 5051 | . . . . . . . . . . . . . . . . . . . . 285 . . . . 852 . 446 2024 . 1444 . . . . . Time 1033 | . . . . . . . . . . . . . . . . . . . . 50 . . . . 456 . 76 266 . 185 . . . . . Total Part Build Rating 129 | . . . . . . . . . . . . . . . . . . . . 5 . . . . 20 . 24 37 . 43 . . . . . Parts Repaired 14 | . . . . . . . . . . . . . . . . . . . . . . . . . 3 . . 2 . 3 5 . 1 . . Time 752 | . . . . . . . . . . . . . . . . . . . . . . . . . 160 . . 148 . 243 164 . 37 . . Parts Recycled . | . . . . . . . . . . . . . . . . . . . . . . . . . . . . . . . . . . . . Recycled Matter . | . . . . . . . . . . . . . . . . . . . . . . . . . . . . . . . . . . . . Retrieved Matter . | . . . . . . . . . . . . . . . . . . . . . . . . . . . . . . . . . . . . Retrieved Components . | . . . . . . . . . . . . . . . . . . . . . . . . . . . . . . . . . . . . Parts Scanalyzed 1 | . . . . . . . . . . . . . . . . . . . . . . . . . . . 1 . . . . . . . . Part Schematics Acquired 1 | . . . . . . . . . . . . . . . . . . . . . . . . . . . 1 . . . . . . . . Parts Damaged . | . . . . . . . . . . . . . . . . . . . . . . . . . . . . . . . . . . . . Bothacking | -11 -10 -10 -9 -9 -9 -8 -8 -8 -7 -7 -7 -7 -7 -6 -6 -6 -6 -6 -5 -5 -5 -5 -5 -5 -4 -4 -4 -4 -4 -3 -3 -3 -2 -1 -1 ------------ Run | Scr Mat Min Mat Min Exi Min Mat Sto Fac Low Low Zio Dee Pro Fac Low Low Dat Pro Fac Ext Cet Arc Hub Fac Was Fac Arm Lab Res Qua Sec Res Acc Com Used RIF Installer . | . . . . . . . . . . . . . . . . . . . . . . . . . . . . . . . . . . . . Robots Hacked 1 | . . . . . . . . . . . . 1 . . . . . . . . . . . . . . . . . . . . . . . Non-combat . | . . . . . . . . . . . . . . . . . . . . . . . . . . . . . . . . . . . . Combat 1 | . . . . . . . . . . . . 1 . . . . . . . . . . . . . . . . . . . . . . . Robot Hacks Applied 1 | . . . . . . . . . . . . 1 . . . . . . . . . . . . . . . . . . . . . . . parse_system 1 | . . . . . . . . . . . . 1 . . . . . . . . . . . . . . . . . . . . . . . Relay Couplers Released . | . . . . . . . . . . . . . . . . . . . . . . . . . . . . . . . . . . . . Robots Rewired 20 | . . . . . . . . . . . . . . 1 . . . . . . 17 . . . . . . 2 . . . . . . . Allies Hacked . | . . . . . . . . . . . . . . . . . . . . . . . . . . . . . . . . . . . . Hacks Repelled . | . . . . . . . . . . . . . . . . . . . . . . . . . . . . . . . . . . . . Allies | -11 -10 -10 -9 -9 -9 -8 -8 -8 -7 -7 -7 -7 -7 -6 -6 -6 -6 -6 -5 -5 -5 -5 -5 -5 -4 -4 -4 -4 -4 -3 -3 -3 -2 -1 -1 -------- Run | Scr Mat Min Mat Min Exi Min Mat Sto Fac Low Low Zio Dee Pro Fac Low Low Dat Pro Fac Ext Cet Arc Hub Fac Was Fac Arm Lab Res Qua Sec Res Acc Com Total Allies 60 | . . 5 . . . . . 10 . . . 3 . 1 . . . 1 . . 26 . . . . . . 2 . . 1 9 . . 2 Largest Group 21 | . . 5 5 . . . . 10 2 . . 2 . 1 1 . . 1 1 . 21 18 3 2 . . . 2 . . 1 7 1 1 3 Highest-Rated Group 1389 | . . 81 81 . . . . 173 32 . . 166 . 29 29 . . 59 59 . 729 647 91 54 . . . 60 . . 26 1162 1075 1075 1389 Highest-Rated Ally 1075 | . . 31 31 . . . . 29 16 . . 166 . 29 29 . . 59 59 . 156 156 37 37 . . . 30 . . 26 1075 1075 1075 1075 Total Orders 15 | . . . . . . . . . 1 . . . . . . . . 2 . 1 . . . . . . . 1 . . 6 3 . . 1 STAY 3 | . . . . . . . . . . . . . . . . . . . . . . . . . . . . . . . 2 . . . 1 GOTO 6 | . . . . . . . . . . . . . . . . . . 1 . . . . . . . . . 1 . . 1 3 . . . FOLLOW 4 | . . . . . . . . . . . . . . . . . . 1 . . . . . . . . . . . . 3 . . . . EXPLORE 2 | . . . . . . . . . 1 . . . . . . . . . . 1 . . . . . . . . . . . . . . . Ally Attacks 521 | . . 3 70 . . . . 52 10 . . 53 . . 5 . . . . . 78 95 8 2 . . . 2 . . . 39 25 9 70 Total Damage 13625 | . . 39 923 . . . . 682 105 . . 1102 . . 93 . . . . . 1830 2118 153 17 . . . 32 . . . 1325 1458 475 3273 Kills 99 | . . 1 13 . . . . 8 1 . . 19 . . . . . . . . 13 19 3 1 . . . 1 . . . 2 7 2 9 Allies Corrupted 3 | . . . . . . . . . 1 . . 1 . . . . . . . . 1 . . . . . . . . . . . . . . Allies Melted . | . . . . . . . . . . . . . . . . . . . . . . . . . . . . . . . . . . . . Field Lobotomies 4 | . . . . . . . . . . . . 1 . . . . . 1 . . . . . . . . . . . . . . . . 2 Intel | -11 -10 -10 -9 -9 -9 -8 -8 -8 -7 -7 -7 -7 -7 -6 -6 -6 -6 -6 -5 -5 -5 -5 -5 -5 -4 -4 -4 -4 -4 -3 -3 -3 -2 -1 -1 ------- Run | Scr Mat Min Mat Min Exi Min Mat Sto Fac Low Low Zio Dee Pro Fac Low Low Dat Pro Fac Ext Cet Arc Hub Fac Was Fac Arm Lab Res Qua Sec Res Acc Com Robot Analysis Total 13 | . . . . . . . . . . . . . . . . . . . . . 1 . . 2 . . . . . . 4 6 . . . Derelict Logs Recovered 6 | . . 1 . 1 . . . . . 1 2 . . 1 . . . . . . . . . . . . . . . . . . . . . Drone Launches 11 | . . . . . . . . 8 . . . . . . . . . . 3 . . . . . . . . . . . . . . . . Drone Recoveries . | . . . . . . . . . . . . . . . . . . . . . . . . . . . . . . . . . . . . Exploration | -11 -10 -10 -9 -9 -9 -8 -8 -8 -7 -7 -7 -7 -7 -6 -6 -6 -6 -6 -5 -5 -5 -5 -5 -5 -4 -4 -4 -4 -4 -3 -3 -3 -2 -1 -1 ------------- Run | Scr Mat Min Mat Min Exi Min Mat Sto Fac Low Low Zio Dee Pro Fac Low Low Dat Pro Fac Ext Cet Arc Hub Fac Was Fac Arm Lab Res Qua Sec Res Acc Com Turns Passed 25220 | . 585 686 900 751 415 572 407 1381 516 510 567 1172 1613 705 847 341 153 110 502 1145 815 327 548 180 1598 59 1524 1795 94 1364 822 1368 270 212 366 Spaces Moved 15487 | 1 255 365 403 241 228 289 121 736 278 289 293 593 704 420 362 249 134 91 290 651 374 130 64 101 637 112 803 696 138 1066 914 1801 592 584 482 Core 1 | . . . . . . . . . . . . 1 . . . . . . . . . . . . . . . . . . . . . . . Treads 4346 | . . . 299 241 228 289 121 527 278 289 293 462 . . . . . . . 184 374 130 64 101 403 . . 19 . . . . . . 44 Legs 3166 | 1 255 365 104 . . . . . . . . 130 298 420 362 249 134 91 290 467 . . . . . . . . . . . . . . . Wheels 209 | . . . . . . . . 209 . . . . . . . . . . . . . . . . . . . . . . . . . . . Hover 7765 | . . . . . . . . . . . . . 406 . . . . . . . . . . . 234 112 803 677 138 1066 914 1801 592 584 438 Flight . | . . . . . . . . . . . . . . . . . . . . . . . . . . . . . . . . . . . . Fastest Speed 20 | 120 120 180 180 180 180 180 180 140 145 165 145 150 26 140 115 115 115 115 115 115 170 166 166 166 45 45 26 24 24 48 24 24 20 20 20 Average Speed 99 | 120 164 180 181 180 180 180 180 149 164 165 152 170 101 142 137 115 115 115 118 138 170 170 166 166 136 45 59 52 37 48 48 32 21 20 35 Slowest Speed 1300 | 120 180 180 210 180 180 180 180 180 165 165 170 1300 280 143 145 115 115 115 145 210 190 190 166 166 210 45 103 165 48 152 156 48 126 20 190 Overloaded Moves . | . . . . . . . . . . . . . . . . . . . . . . . . . . . . . . . . . . . . Propulsion Burnouts . | . . . . . . . . . . . . . . . . . . . . . . . . . . . . . . . . . . . . Robots Hopped . | . . . . . . . . . . . . . . . . . . . . . . . . . . . . . . . . . . . . Cave-ins Triggered 1 | . . . . . . . . . . . . . . . . . . . . . 1 . . . . . . . . . . . . . . Teleports 2 | . . . . . . . . . . . . . . . . . . . . . . . . . . . . . . . . 1 1 . . Exploration Rate (%) 46 | 2 44 76 44 59 62 37 13 93 18 53 43 52 75 64 8 48 35 75 60 17 58 61 67 27 14 84 17 42 89 23 72 73 28 22 20 Regions Visited 35 Branch Regions 23 Pre-discovered Areas 3 | . . 2 . . . . . . . . . . . . . . . 1 . . . . . . . . . . . . . . . . . Known Exits Taken 18 | . . . 1 . . . 1 . . . . . . 1 1 . . . 1 1 1 1 1 1 . . 1 1 1 1 1 1 1 1 . Unknown Exits Taken 15 | 1 1 1 . 1 1 1 . 1 1 1 1 1 1 . . 1 1 1 . . . . . . . . . . . . . . . . . Scrap Searched 4 | . . . . . . . . . . . 2 . . . . 1 . . 1 . . . . . . . . . . . . . . . . Spaces Dug 177 | . . . . . . . . 3 . . . . . . . 25 . . . 13 15 . . . 15 . 15 10 . 29 7 19 5 18 3 Terrain Destroyed 1120 | . 7 . . . . . . 3 29 16 68 . 13 29 5 51 . . 75 61 32 4 3 307 21 . 59 61 . 36 18 157 42 18 5 Melee 101 | . . . . . . . . 3 . . . . . . . . . . . . . . . . 5 . 15 10 . 28 6 19 . 15 . Projectile 87 | . . . . . . . . . 1 . . . . 11 . . . . 3 19 18 4 3 2 7 . . 1 . 1 1 3 5 3 5 AOE 932 | . 7 . . . . . . . 28 16 68 . 13 18 5 51 . . 72 42 14 . . 305 9 . 44 50 . 7 11 135 37 . . Actions | -11 -10 -10 -9 -9 -9 -8 -8 -8 -7 -7 -7 -7 -7 -6 -6 -6 -6 -6 -5 -5 -5 -5 -5 -5 -4 -4 -4 -4 -4 -3 -3 -3 -2 -1 -1 --------- Run | Scr Mat Min Mat Min Exi Min Mat Sto Fac Low Low Zio Dee Pro Fac Low Low Dat Pro Fac Ext Cet Arc Hub Fac Was Fac Arm Lab Res Qua Sec Res Acc Com Total 23953 | . 366 387 517 560 234 319 305 968 318 309 363 711 1547 516 690 293 133 93 385 829 524 190 487 106 1287 120 1704 2029 176 1798 1247 2473 702 634 633 Wait 6246 | . 62 17 61 307 . 19 180 172 5 1 7 20 725 29 288 1 . . 1 67 28 23 408 2 497 3 768 1121 17 594 224 481 51 5 62 Move 15452 | . 254 364 402 240 227 288 120 735 277 288 292 592 703 419 361 248 133 90 289 650 373 129 63 100 637 111 802 695 137 1065 913 1800 591 583 481 Hop . | . . . . . . . . . . . . . . . . . . . . . . . . . . . . . . . . . . . . Pick Up 277 | . 15 1 14 5 3 . 1 5 6 3 8 15 6 19 5 9 . . 17 8 6 4 2 . 25 2 4 22 6 19 16 15 4 4 8 Fast Attach 154 | . 1 . . . . . . 6 2 . 7 7 11 4 7 2 . . 4 9 6 1 . . 10 . 6 15 3 5 18 18 5 3 4 Attach 183 | . 1 . 7 . . 1 1 5 2 1 1 7 6 4 3 5 . . 4 12 5 1 1 . 11 1 5 25 1 13 11 24 9 4 12 Detach 133 | . . . . . . . . 3 1 . 1 4 7 3 2 3 . . 6 12 3 . . . 4 1 2 21 1 7 11 21 4 3 13 Swap 201 | . 1 . 2 3 1 . . 1 5 2 7 10 26 3 . . . 2 3 4 5 5 3 . 16 1 31 15 . 16 10 20 4 2 3 Drop 255 | . 3 1 3 5 3 . . 3 8 3 6 13 14 17 3 10 . . 18 7 3 4 1 . 25 1 10 20 8 13 16 23 . 3 11 Fire 611 | . 29 4 28 . . 11 3 20 11 5 26 15 19 16 21 15 . 1 42 60 18 23 9 4 56 . 5 33 . 10 11 41 33 7 35 Melee 322 | . . . . . . . . 12 1 6 8 21 30 1 . . . . . . . . . . 6 . 71 35 3 56 17 30 1 20 4 Ram . | . . . . . . . . . . . . . . . . . . . . . . . . . . . . . . . . . . . . Kick . | . . . . . . . . . . . . . . . . . . . . . . . . . . . . . . . . . . . . Crush . | . . . . . . . . . . . . . . . . . . . . . . . . . . . . . . . . . . . . Escape Stasis 4 | . . . . . . . . 2 . . . . . . . . . . . . 2 . . . . . . . . . . . . . . Rewire 110 | . . . . . . . . . . . . 7 . 1 . . . . . . 75 . . . . . . 27 . . . . . . . Trap . | . . . . . . . . . . . . . . . . . . . . . . . . . . . . . . . . . . . . Miscellaneous 5 | . . . . . . . . 4 . . . . . . . . . . 1 . . . . . . . . . . . . . . . . Route ------- -11/Scrapyard -10/Materials (discovered 2 exits: *Mat / [*Min]) -10/Mines -9/Materials (discovered 2 exits: *Min x2) -9/Mines (discovered 2 exits: *Mat / *Exi) -9/Exiles -8/Mines -8/Materials (discovered 2 exits: *Sto x2) -8/Storage (discovered 2 exits: *Fac / Rec) -7/Factory (discovered 5 exits: Fac x4 / [*Low]) -7/Lower Caves -7/Lower Caves -7/Zion (discovered 2 exits: [*Dee] / [*Pro]) -7/Deep Caves -6/Proximity Caves -6/Factory (discovered 4 exits: *Fac x2 / *Low x2) -6/Lower Caves -6/Lower Caves -6/Data Miner -5/Proximity Caves -5/Factory (discovered 5 exits: *Fac / *Upp x2 / *Ext x2) -5/Extension (discovered 2 exits: *Fac / *Cet) -5/Cetus -5/Archives -5/Hub_04(d) (discovered 4 exits: *Fac x4) -4/Factory (discovered 4 exits: *Res / Upp x2 / Arm) -4/Waste -4/Factory (discovered 4 exits: Res / *Upp x2 / *Arm) -4/Armory (discovered 3 exits: Res x2 / *Lab) -4/Lab -3/Research (discovered 4 exits: *Res x2 / *Qua x2) -3/Quarantine -3/Section 7 -2/Research -1/Access -1/Command (discovered 2 exits: *Sur x2) Tau Ceti IV Orbit History --------- Turn | Location | Event 1 | -11/Scrapyard | Discovered new exit (range 0) 1 | -11/Scrapyard | Entered Materials 260 | -10/Materials | Discovered new exit (range 16) 317 | -10/Materials | Build established: Mutant 560 | -10/Materials | Discovered new exit (range 12) 586 | -10/Materials | Entered Mines 772 | -10/Mines | Learned location of Zion (-7) 777 | -10/Mines | Discovered new exit (range 3) 999 | -10/Mines | Assisted by bots powering up and referring to "LRC-V3" 1156 | -10/Mines | Learned location of Storage (-8) 1272 | -10/Mines | Entered Materials 1272 | -9/Materials | Accompanied by 5 allies 1272 | -9/Materials | Evolved 2 slots: Utility x2 1277 | -9/Materials | Led the pair of lost Derelicts to an unsafe place 1742 | -9/Materials | Build established: Hauler-Mutant 1748 | -9/Materials | Lost 3 parts (1p2w) 1868 | -9/Materials | Identified exit to Mines 2172 | -9/Materials | Entered Mines 2275 | -9/Mines | Learned Materials garrison access intel 2353 | -9/Mines | Met a Derelict who couldn't figure out how to use a Trap Extractor 2803 | -9/Mines | Discovered new exit (range 10) 2914 | -9/Mines | Deemed a non-threat by the Exiles lab entrance 2916 | -9/Mines | Discovered new exit (range 5) 2923 | -9/Mines | Entered Exiles 2967 | -9/Exiles | Met 8R-AWN 2999 | -9/Exiles | Met EX-HEX 3046 | -9/Exiles | Met EX-BIN 3080 | -9/Exiles | Aligned with FarCom system 3082 | -9/Exiles | Given EX-Vault access code 3129 | -9/Exiles | Opened EX-Vault 3144 | -9/Exiles | Found Cloak of Protection 3149 | -9/Exiles | Found Field Lobotomy Kit 3155 | -9/Exiles | Found Skeleton Box 3190 | -9/Exiles | Warned to stay clear of 0b10 Research branches 3241 | -9/Exiles | Met EX-DEC 3316 | -9/Exiles | Discovered new exit (range 14) 3338 | -9/Exiles | Stole three prototypes: Cloak of Protection, Skeleton Box, Field Lobotomy Kit 3338 | -9/Exiles | Entered Mines 3844 | -8/Mines | Discovered new exit (range 5) 3910 | -8/Mines | Entered Materials 3910 | -8/Materials | Evolved 2 slots: Propulsion x1, Utility x1 3911 | -8/Materials | Loaded intel: 1 garrison access location 4278 | -8/Materials | Discovered new exit (range 10) 4279 | -8/Materials | Identified exit to Storage 4317 | -8/Materials | Entered Storage 4799 | -8/Storage | Lost 5 parts (1p2n1u1w) 4852 | -8/Storage | Assisted by bots powering up and referring to "LRC-V3" 5123 | -8/Storage | Identified exit to Recycling 5166 | -8/Storage | Build established: Commander-Mutant 5335 | -8/Storage | Discovered new exit (range 7) 5641 | -8/Storage | Build established: Hauler-Mutant 5698 | -8/Storage | Entered Factory 5698 | -7/Factory | Accompanied by 7 allies 5698 | -7/Factory | Evolved 2 slots: Utility x2 5700 | -7/Factory | FarCom data flow suspended 5915 | -7/Factory | Identified exit to Factory 6186 | -7/Factory | Discovered new exit (range 8) 6214 | -7/Factory | Entered Lower Caves 6551 | -7/Lower Caves | Learned Factory emergency access door positions 6615 | -7/Lower Caves | Spotted 1G-EA3(f) 6616 | -7/Lower Caves | Encountered a Master Thief 6618 | -7/Lower Caves | Spotted MU-LSC(f) 6619 | -7/Lower Caves | Encountered a Master Thief 6620 | -7/Lower Caves | Hrd. Heavy Armor Plating stolen by Master Thief 6703 | -7/Lower Caves | Discovered new exit (range 15) 6724 | -7/Lower Caves | Entered another Lower Caves area 6916 | -7/Lower Caves | Lost 4 parts (1p2u1w) 6921 | -7/Lower Caves | Learned 4 Factory zone layouts 6925 | -7/Lower Caves | Spotted EG-Q9Z(f) 6926 | -7/Lower Caves | Encountered a Master Thief 6932 | -7/Lower Caves | Med. Treads stolen by Master Thief 7037 | -7/Lower Caves | Attracted the attention of an 0b10 checkpoint 7061 | -7/Lower Caves | Learned Factory emergency access door positions 7248 | -7/Lower Caves | Found Imp. Powered Armor 7274 | -7/Lower Caves | Discovered new exit (range 11) 7291 | -7/Lower Caves | Entered Zion 7319 | -7/Zion | Acquired unknown access codes intercepted by a Zionite 7380 | -7/Zion | Gained Derelict followers 7460 | -7/Zion | Discovered new exit (range 15) 7688 | -7/Zion | Found Prototype Device 7689 | -7/Zion | Identified Phasing AFG 7739 | -7/Zion | Assimilated A8 with FLK Orb 7740 | -7/Zion | Attacked by Zionites 8163 | -7/Zion | NK-0LA came to Zion's defense 8190 | -7/Zion | System corruption reached 10% 8194 | -7/Zion | Core integrity fell below 50% 8204 | -7/Zion | Destroyed NK-0LA 8229 | -7/Zion | Lost 9 parts (2p3n3u1w) 8233 | -7/Zion | Found NK-0LA's Tesla Doomcannon 8236 | -7/Zion | Found Thermal Barrier 8239 | -7/Zion | Found EM Disruption Field 8296 | -7/Zion | Found Prototype Protection 8296 | -7/Zion | Identified Lgt. Regenerative Plating 8435 | -7/Zion | Opened final containment barrier to the Deep Caves 8458 | -7/Zion | Discovered new exit (range 3) 8458 | -7/Zion | Saw the warning signs outside the Deep Caves entrance 8463 | -7/Zion | Entered Deep Caves 8484 | -7/Deep Caves | Build established: Scavenger-Mutant 9365 | -7/Deep Caves | Attacked by Z-Imprinter 9446 | -7/Deep Caves | Destroyed Z-Imprinter 9453 | -7/Deep Caves | Found Prototype Device 9453 | -7/Deep Caves | Identified Zio. Metafield Generator 9497 | -7/Deep Caves | Found Prototype Protection 9497 | -7/Deep Caves | Identified Zio. Weapon Casing 9608 | -7/Deep Caves | Found Zio. Weapon Casing 9624 | -7/Deep Caves | Z-Facility disabled 9764 | -7/Deep Caves | Discovered new exit (range 6) 9817 | -7/Deep Caves | Found AWS/Gauss 9823 | -7/Deep Caves | Core integrity fell below 20% 9836 | -7/Deep Caves | Spotted as-93185 9844 | -7/Deep Caves | Destroyed as-93185 9882 | -7/Deep Caves | Exposed GOLEM chamber 10076 | -7/Deep Caves | Entered Proximity Caves 10081 | -6/Proximity Caves | Learned location of 1 exit from Factory 10137 | -6/Proximity Caves | Attracted the attention of an 0b10 checkpoint 10201 | -6/Proximity Caves | Spotted 6N-GYN(f) 10202 | -6/Proximity Caves | Encountered a Master Thief 10207 | -6/Proximity Caves | Destroyed 6N-GYN(f) 10335 | -6/Proximity Caves | Spotted RC-1K8(f) 10336 | -6/Proximity Caves | Encountered a Master Thief 10339 | -6/Proximity Caves | Skeleton Box stolen by Master Thief 10341 | -6/Proximity Caves | Destroyed RC-1K8(f) 10453 | -6/Proximity Caves | Spotted SN-DX3(f) 10454 | -6/Proximity Caves | Encountered a Master Thief 10456 | -6/Proximity Caves | Spotted DX-MYU(f) 10456 | -6/Proximity Caves | Skeleton Box stolen by Master Thief 10457 | -6/Proximity Caves | Encountered a Master Thief 10476 | -6/Proximity Caves | Destroyed DX-MYU(f) 10637 | -6/Proximity Caves | Found Alien Artifact 10702 | -6/Proximity Caves | Attracted the attention of an 0b10 outpost 10767 | -6/Proximity Caves | Discovered exit to Factory (range 9) 10781 | -6/Proximity Caves | Entered Factory 10781 | -6/Factory | Accompanied by 1 ally 10781 | -6/Factory | Evolved 2 slots: Propulsion x1, Utility x1 10782 | -6/Factory | Identified exit to Lower Caves 10783 | -6/Factory | Identified exit to Factory 10808 | -6/Factory | Identified Dimensional Node Initializer 11193 | -6/Factory | Discovered exit to Factory (range 15) 11254 | -6/Factory | Lost 3 parts (1p2n) 11628 | -6/Factory | Entered Lower Caves 11821 | -6/Lower Caves | Encountered a Warlord checkpoint 11905 | -6/Lower Caves | Spotted EX-H12(f) 11907 | -6/Lower Caves | Encountered a Master Thief 11911 | -6/Lower Caves | Spotted ON-K4L(f) 11912 | -6/Lower Caves | Encountered a Master Thief 11914 | -6/Lower Caves | Cloak of Protection stolen by Master Thief 11915 | -6/Lower Caves | Destroyed EX-H12(f) 11924 | -6/Lower Caves | Spotted 07-N2Q(f) 11925 | -6/Lower Caves | Encountered a Master Thief 11936 | -6/Lower Caves | Dimensional Node Initializer stolen by Master Thief 11961 | -6/Lower Caves | Discovered new exit (range 8) 11969 | -6/Lower Caves | Entered another Lower Caves area 12116 | -6/Lower Caves | Discovered new exit (range 7) 12122 | -6/Lower Caves | Entered Data Miner 12122 | -6/Data Miner | Discovered new exit (range 6) 12144 | -6/Data Miner | Met Data Miner 12166 | -6/Data Miner | Learned location of Section 7 (-3) 12166 | -6/Data Miner | Acquired the access code to Warlord's prototype stash 12186 | -6/Data Miner | Received God Mode back door access code from Data Miner 12196 | -6/Data Miner | Assimilated Data Miner with FLK Orb 12232 | -6/Data Miner | Entered Proximity Caves 12232 | -5/Proximity Caves | Accompanied by 1 ally 12274 | -5/Proximity Caves | Destroyed Data Miner 12279 | -5/Proximity Caves | Found Prototype Hackware 12282 | -5/Proximity Caves | Found Prototype Hackware 12286 | -5/Proximity Caves | Found Prototype Hackware 12434 | -5/Proximity Caves | Spotted QC-4EW(f) 12435 | -5/Proximity Caves | Encountered a Master Thief 12435 | -5/Proximity Caves | Phasing AFG stolen by Master Thief 12452 | -5/Proximity Caves | Spotted O9-TRP(f) 12453 | -5/Proximity Caves | Encountered a Master Thief 12499 | -5/Proximity Caves | Destroyed 8 combat bots 12646 | -5/Proximity Caves | Spotted B-75 Beast 12690 | -5/Proximity Caves | Destroyed B-75 Beast 12703 | -5/Proximity Caves | Discovered exit to Factory (range 8) 12734 | -5/Proximity Caves | Entered Factory 12734 | -5/Factory | Accompanied by 1 ally 12734 | -5/Factory | Evolved 2 slots: Utility x2 12776 | -5/Factory | Discovered new exit (range 32) 12988 | -5/Factory | Discovered new exit (range 11) 13050 | -5/Factory | Identified exit to Factory 13213 | -5/Factory | Identified exit to Upper Caves 13213 | -5/Factory | Identified exit to Extension 13323 | -5/Factory | Identified Deep Network Scanner 13324 | -5/Factory | Identified Ghost Barrier 13561 | -5/Factory | Found Hvy. Reflective Plating 13800 | -5/Factory | Build established: Hacker-Mutant 13811 | -5/Factory | Fabricated Exp. Sensor Array (x1) 13832 | -5/Factory | Local fabrication network quarantined 13879 | -5/Factory | Entered Extension 14017 | -5/Extension | Rescued a captive Derelict 14175 | -5/Extension | Rescued a captive Derelict 14179 | -5/Extension | Rescued a captive Derelict 14180 | -5/Extension | Rescued a captive Derelict 14182 | -5/Extension | Rescued a captive Derelict 14233 | -5/Extension | Rescued A7 14300 | -5/Extension | Crushed by falling debris 14301 | -5/Extension | System corruption reached 10% 14341 | -5/Extension | Lost 3 parts (1p2u) 14346 | -5/Extension | Rescued a captive Derelict 14479 | -5/Extension | Rescued a captive Derelict 14557 | -5/Extension | Rescued a captive Derelict 14559 | -5/Extension | Rescued a captive Derelict 14649 | -5/Extension | Discovered exit to Factory (range 10) 14651 | -5/Extension | Discovered new exit (range 6) 14680 | -5/Extension | Identified exit to Cetus 14694 | -5/Extension | Entered Cetus 14694 | -5/Cetus | Accompanied by 18 allies 14699 | -5/Cetus | Acquired a Cetus Manufacturing Module code from A7 14704 | -5/Cetus | Build established: Commander-Mutant 14722 | -5/Cetus | Spotted Cetus Guard 14722 | -5/Cetus | Spotted Cetus Guard 14724 | -5/Cetus | Spotted Cetus Guard 14724 | -5/Cetus | Spotted Cetus Guard 14734 | -5/Cetus | Allies destroyed Cetus Guard 14734 | -5/Cetus | Allies destroyed Cetus Guard 14737 | -5/Cetus | Allies destroyed Cetus Guard 14741 | -5/Cetus | Allies destroyed Cetus Guard 14823 | -5/Cetus | Cetus Manufacturing Module disabled 14934 | -5/Cetus | Discovered new exit (range 15) 15001 | -5/Cetus | Destroyed A7 15006 | -5/Cetus | Extracted ID and sensor layout for unrecognized location from A7's data core 15016 | -5/Cetus | Identified exit to Archives 15021 | -5/Cetus | Entered Archives 15021 | -5/Archives | Accompanied by 3 allies 15065 | -5/Archives | Build established: Scavenger-Mutant 15144 | -5/Archives | Discovered new exit (range 16) 15173 | -5/Archives | Identified exit to Hub_04(d) 15569 | -5/Archives | Entered Hub_04(d) 15569 | -5/Hub_04(d) | Accompanied by 2 allies 15717 | -5/Hub_04(d) | Network Hub disabled 15724 | -5/Hub_04(d) | Network Hub disabled 15749 | -5/Hub_04(d) | Entered Factory 15749 | -4/Factory | Evolved 2 slots: Utility x2 15783 | -4/Factory | Garrison activated, responded to threat 16119 | -4/Factory | Identified exit to Upper Caves 16119 | -4/Factory | Identified exit to Armory 16168 | -4/Factory | Discovered new exit (range 5) 16181 | -4/Factory | Identified exit to Research 16304 | -4/Factory | Fabricated Exp. Sensor Array (x1) 16329 | -4/Factory | Build established: Hacker-Mutant 16456 | -4/Factory | Fabricated Exp. Utility Shielding (x1) 16738 | -4/Factory | Repaired Lrg. Storage Unit 16769 | -4/Factory | Repaired Lrg. Storage Unit 16895 | -4/Factory | Repaired Centrium Heavy Treads? 16943 | -4/Factory | Fabricated Exp. Terrain Scan Processor? 17111 | -4/Factory | Fabricated Exp. Terrain Scanner? 17136 | -4/Factory | Local fabrication network quarantined 17249 | -4/Factory | First assault squad dispatched 17347 | -4/Factory | Manually triggered Chute Trap 17347 | -4/Factory | Sucked down chute 17347 | -4/Factory | Entered Waste 17349 | -4/Waste | Spotted C-40 Crusher 17356 | -4/Waste | Spotted C-40 Crusher 17358 | -4/Waste | Spotted C-40 Crusher 17362 | -4/Waste | EMP discharged 17362 | -4/Waste | System corruption reached 10% 17363 | -4/Waste | Spotted C-40 Crusher 17379 | -4/Waste | Spotted C-40 Crusher 17390 | -4/Waste | Spotted C-40 Crusher 17393 | -4/Waste | Discovered new exit (range 11) 17400 | -4/Waste | Identified Quantum Router 17406 | -4/Waste | Identified exit to Factory 17406 | -4/Waste | Entered Factory 17451 | -4/Factory | Found Quantum Capacitor 17647 | -4/Factory | Discovered exit to Upper Caves (range 5) 17709 | -4/Factory | Build established: Wizard-Mutant 17930 | -4/Factory | Discovered exit to Research (range 8) 18577 | -4/Factory | Fabricated Cmb. Linear Gravjet (x2) 18619 | -4/Factory | Fabricated Mni. Smartbomb Launcher (x1) 18906 | -4/Factory | First assault squad dispatched 18930 | -4/Factory | Entered Armory 19094 | -4/Armory | Spotted B-86 Titan 19850 | -4/Armory | Core integrity fell below 50% 19913 | -4/Armory | Lost 8 parts (1p5u2w) 20052 | -4/Armory | Repaired Cmb. Linear Gravjet? 20149 | -4/Armory | Build established: Hacker-Mutant 20161 | -4/Armory | Repaired Cmb. Linear Gravjet? 20305 | -4/Armory | Fabricated Exp. Utility Shielding (x1) 20318 | -4/Armory | Fabricated Lrg. Storage Unit (x1) 20358 | -4/Armory | Fabricated Exp. Weapon Shielding (x1) 20404 | -4/Armory | Fabricated Exp. Weapon Shielding (x1) 20447 | -4/Armory | Fabricated Exp. Terrain Scanner (x1) 20489 | -4/Armory | Fabricated Exp. Utility Shielding (x1) 20573 | -4/Armory | Fabricated Exp. Signal Interpreter (x1) 20601 | -4/Armory | Fabricated Adv. Hacking Suite? 20623 | -4/Armory | Local fabrication network quarantined 20625 | -4/Armory | Core integrity fell below 20% 20680 | -4/Armory | First assault squad dispatched 20713 | -4/Armory | Found Adv. Force Booster 20721 | -4/Armory | Discovered new exit (range 5) 20724 | -4/Armory | Identified exit to Lab 20725 | -4/Armory | Entered Lab 20725 | -4/Lab | Discovered exit to Research (range 9) 20728 | -4/Lab | Hidden lab's door opened automatically 20728 | -4/Lab | Sensor layout match revealed 20729 | -4/Lab | Gained access to the hidden lab's interior 20732 | -4/Lab | Found Alien Artifact 20738 | -4/Lab | Found Alien Artifact 20744 | -4/Lab | Found Alien Artifact 20749 | -4/Lab | Found Alien Artifact 20759 | -4/Lab | Found Prototype Protection 20759 | -4/Lab | Identified Hvy. Regenerative Plating 20764 | -4/Lab | Found Prototype Energy Gun 20764 | -4/Lab | Identified Tachyon Dispersion Ray 20767 | -4/Lab | Found Prototype Energy Gun 20767 | -4/Lab | Identified Hyp. EM Gauss Rifle 20775 | -4/Lab | Found Deep Network Scanner 20819 | -4/Lab | Entered Research 20819 | -3/Research | Evolved 2 slots: Utility x2 20857 | -3/Research | Fabricated Adv. Hacking Suite (x1) 20883 | -3/Research | Fabricated Adv. Hacking Suite (x1) 20986 | -3/Research | Discovered new exit (range 27) 21087 | -3/Research | Identified Transdimensional Reconstructor 21087 | -3/Research | Identified Core Regenerator 21087 | -3/Research | Identified Integrated Reactor 21087 | -3/Research | Identified Core Reset Matrix 21106 | -3/Research | Identified exit to Research 21112 | -3/Research | Installed Integrated Reactor, increased core energy generation (+2%) 21200 | -3/Research | Build established: Wizard-Mutant 21281 | -3/Research | Found Gamma Bomb Array 21305 | -3/Research | Discovered new exit (range 27) 21360 | -3/Research | Identified exit to Quarantine 21442 | -3/Research | Discovered exit to Research (range 16) 21504 | -3/Research | Build established: Wizard-Scout 21552 | -3/Research | Fabricated Beam Splitter (x1) 21587 | -3/Research | Fabricated EM Dispersion Field? 21924 | -3/Research | Fabricated Com. Tesla Bomb Launcher (x1) 21955 | -3/Research | Fabricated Com. Tesla Bomb Launcher (x1) 21959 | -3/Research | Repaired Mni. Smartbomb Launcher? 22006 | -3/Research | Local fabrication network quarantined 22045 | -3/Research | Repaired Exp. Sensor Array? 22124 | -3/Research | Repaired Cmb. Linear Gravjet 22183 | -3/Research | Entered Quarantine 22187 | -3/Quarantine | Used Core Reset Matrix 22191 | -3/Quarantine | Detected hypermatrix surge 22191 | -3/Quarantine | Sensed 12 artifacts in vicinity 22316 | -3/Quarantine | Found Dimensional Node Initializer 22319 | -3/Quarantine | Found Dimensional Node Initializer 22377 | -3/Quarantine | Central database locked down 22383 | -3/Quarantine | Cryocooling Duct disabled 22398 | -3/Quarantine | Ambient heat levels rising (+20) 22398 | -3/Quarantine | Non-combat units ordered to evacuate 22413 | -3/Quarantine | Found Sigix Terminator 22480 | -3/Quarantine | Initialized slip node 22510 | -3/Quarantine | Garrison activated, responded to threat 22600 | -3/Quarantine | Found Subatomic Replicator 22704 | -3/Quarantine | Repaired Exp. Utility Shielding 22743 | -3/Quarantine | Repaired Cmb. Linear Gravjet 22782 | -3/Quarantine | Repaired Cmb. Linear Gravjet 22796 | -3/Quarantine | Repaired Lrg. Storage Unit 22835 | -3/Quarantine | Repaired Quantum Reactor 22851 | -3/Quarantine | Met incapacitated Sigix Warrior 22851 | -3/Quarantine | Lockdown squad dispatched 22852 | -3/Quarantine | Acquired the access code to the Sigix quarantine chamber 22852 | -3/Quarantine | Unlocked Sigix quarantine chamber 22973 | -3/Quarantine | Spotted Fortress 22999 | -3/Quarantine | Discovered new exit (range 5) 23000 | -3/Quarantine | Identified exit to Section 7 23005 | -3/Quarantine | Entered Section 7 23006 | -3/Section 7 | Sensed 20 artifacts in vicinity 23037 | -3/Section 7 | Found Integrated Reactor 23037 | -3/Section 7 | Installed Integrated Reactor, increased core energy generation (+2%) 23325 | -3/Section 7 | Found Prototype Device 23325 | -3/Section 7 | Identified Exp. Transmission Jammer 23419 | -3/Section 7 | Spotted S7 Guard 23427 | -3/Section 7 | Found Integrated Singularity Reactor 23432 | -3/Section 7 | Used Subatomic Replicator to replicate Integrated Singularity Reactor 23434 | -3/Section 7 | Installed Integrated Singularity Reactor, increased core energy generation (+2%) 23436 | -3/Section 7 | Installed Integrated Singularity Reactor, increased core energy generation (+2%) 23871 | -3/Section 7 | Initialized slip node 24025 | -3/Section 7 | Found Transdimensional Reconstructor 24026 | -3/Section 7 | Found Transdimensional Reconstructor 24042 | -3/Section 7 | Build established: Wizard-Sprinter 24042 | -3/Section 7 | Spotted B-99 Colossus 24053 | -3/Section 7 | Found Core Expander 24053 | -3/Section 7 | Installed Core Expander, added new Propulsion slot 24065 | -3/Section 7 | Found LRC Matter Compressor 24065 | -3/Section 7 | Installed LRC Matter Compressor, increased matter storage capacity (+125) 24103 | -3/Section 7 | Found Integrated Dissipator 24103 | -3/Section 7 | Installed Integrated Dissipator, increased core heat dissipation (+2%) 24105 | -3/Section 7 | Found Integrated Dissipator 24105 | -3/Section 7 | Installed Integrated Dissipator, increased core heat dissipation (+2%) 24226 | -3/Section 7 | Activated Sigix Exoskeleton 24226 | -3/Section 7 | Received instructions from Sigix Warrior 24268 | -3/Section 7 | Fired Sigix Terminator 24268 | -3/Section 7 | Spotted Executioner 24268 | -3/Section 7 | Spotted Executioner 24268 | -3/Section 7 | Destroyed Executioner 24269 | -3/Section 7 | Core integrity fell below 50% 24277 | -3/Section 7 | Spotted Striker 24278 | -3/Section 7 | Garrison activated, responded to threat 24283 | -3/Section 7 | Allies destroyed Executioner 24299 | -3/Section 7 | Warped through subspace to slip node 24300 | -3/Section 7 | Emitted hypermatrix ping 24305 | -3/Section 7 | Assembled emerged from beneath the floor 24306 | -3/Section 7 | Destroyed 11 combat bots 24347 | -3/Section 7 | Spotted S7 Guard 24361 | -3/Section 7 | Destroyed S7 Guard 24373 | -3/Section 7 | Entered Research 24373 | -2/Research | Accompanied by 1 ally 24373 | -2/Research | Evolved 2 slots: Utility x1, Weapon x1 24419 | -2/Research | Repaired Cmb. Linear Gravjet 24452 | -2/Research | Spotted Executioner 24454 | -2/Research | Allies destroyed Executioner 24520 | -2/Research | Spotted Executioner 24520 | -2/Research | Spotted Executioner 24522 | -2/Research | Warped through subspace 24554 | -2/Research | Spotted B-90 Cyclops 24574 | -2/Research | Lost 3 parts (2n1u) 24617 | -2/Research | Garrison activated, responded to threat 24627 | -2/Research | Discovered new exit (range 7) 24642 | -2/Research | Identified exit to Access 24643 | -2/Research | Entered Access 24643 | -1/Access | Accompanied by 1 ally 24643 | -1/Access | Evolved 2 slots: Utility x2 24660 | -1/Access | Destroyed 7 combat bots 24807 | -1/Access | Discovered new exit (range 26) 24853 | -1/Access | Identified exit to Command 24855 | -1/Access | Entered Command 24855 | -1/Command | Accompanied by 1 ally 24859 | -1/Command | Found Faulty EM Dispersion Field 24884 | -1/Command | Found EM Dispersion Field 24926 | -1/Command | Discovered new exit (range 25) 25003 | -1/Command | Spotted M Guard 25003 | -1/Command | Spotted M Guard 25003 | -1/Command | Spotted Combat Programmer 25009 | -1/Command | Spotted Combat Programmer 25010 | -1/Command | Assimilated Combat Programmer with FLK Orb 25012 | -1/Command | Assimilated Combat Programmer with FLK Orb 25018 | -1/Command | Allies destroyed M Guard 25021 | -1/Command | Allies destroyed M Guard 25023 | -1/Command | Found Prototype Reactor 25023 | -1/Command | Identified Zero-point Reactor 25067 | -1/Command | Met MAIN.C 25067 | -1/Command | Received instructions from Sigix Warrior 25069 | -1/Command | 0b10 Conduit disabled 25091 | -1/Command | Destroyed MAIN.C Shell 25094 | -1/Command | MAIN.C activated Command garrisons 25111 | -1/Command | Destroyed all MAIN.C guards 25114 | -1/Command | Destroyed MAIN.C 25146 | -1/Command | Found Prototype Protection 25146 | -1/Command | Identified Exp. Powered Armor 25185 | -1/Command | Spotted B-99 Colossus 25200 | -1/Command | Discovered new exit (range 16) 25216 | -1/Command | Identified exit to Surface 25221 | *** | Destroyed 0B10! Last Messages --------------- 25204_ Slug penetrates Sigix Warrior. 25204_ K-01 Serf collects debris. 25204_ Quantum Shear penetrates B-99 Colossus. 25207_ Quantum Shear penetrates Wall. 25207_ Quantum Shear penetrates B-99 Colossus. 25207_ Slug penetrates Sigix Warrior. 25207_ Slug penetrates Wall. 25209_ K-01 Serf collects debris. 25211_ Slug penetrates Sigix Warrior. 25211_ Sigix Warrior suffers critical hit. 25211_ Slug penetrates Wall. 25211_ Sigix Warrior suffers critical hit. 25211_ Slug penetrates Sigix Warrior. 25211_ Slug penetrates Wall. 25213_ Slug penetrates Sigix Warrior. 25213_ Slug penetrates Wall. 25214_ Slug penetrates Sigix Warrior. 25214_ Penetrated by Slug. 25216_ EXIT=IDENTIFIED: SURFACE 25218_ Slug penetrates Wall. Map ----- +----------------------------------------------------+ | ??????? ?? ?? ? ####### ########## | | ??????? ?? ? ########## | | ????? ?? ? ####### ########## | | ????? ????? ######## #### ### ########## | | ??###??? ? ########+####+#### ######""""" | | ?? ?? # #### # #####"" | | ?? ? ?#? #### + #####""""" | | ? ??? ? ? #### # #####""""" | | ?? ? #### # #####" " | | ???# #### # #####"" " | | ??????? ??? #### # #####"" " | | ? ? #? ? ###+############ ##### " " | | ? # ### ############ ##### " | | ? ? # ? ### #########" "#### " | | ?? # ? "" "" !%[!%! #####""""" | | ?? ? ""R"" *= #####"" | | ?? ? """" ##### | | ? # #?###### #### #######/#" "#### | | ? ??#?###### ############## " ##### | | ?? ? ######## ############## # | | ? ? #?######## ############## # | | ######?+#?###### ############## # | | # ?? ?? ### ############## ##"#"##### "" | | ? ? ?? ### ############## ########## " | | #?? ??? ?### ####### ### ########## | | # ? ? ### ####### @ ; X ############### | | ? ? ? # ###### ### ############### | | ? ??? ? # ######## ###################### | | # """"? # ######## ###################### | | #??? ?"?" #? ######## ###################### | | ?? ? ?? ## ######### ###################### | | ? ? ? ? ? ## ######### ###################### | | ?? ? ? ## ######### ## ########### | | #??#####+###### ######### ## ########### | | "?"? ? ?? ######## # """"" ########### | | ""?""?? ?? ? = # ""R"" ########### | | ??? ? ?? ?? + " " ########### | | ????? ? ??#?########### # ########### | | ? ? ?# ??? ### ## ########### | | ? ?? ? ?# ? ? ### ## ########### | | ???? ? ?# ? ??? ### ###################### | | ?? ? ?? ??##? ? ### #### ################# | | ? ?? ?##? ? ?? ### #### ################# | | ?####?######??##??##+### ## ################# | | ???#?###?#?###### ? ? ## ################# | | ?????#?###?#?##?? ? ## ################# | | ????##??#?##?#?## ? ## ################# | | ?????#?#?#####?#? ? ?? ???? ## ################# | | ??????#????##??#######?? ?? ?# ##########?###### | | ????????###?#?##?########?+#+#########?########### | +----------------------------------------------------+ Best States ------------- Heat Dissipation 92 Energy Generation 93 Energy Capacity 1350 Matter Stores 500 Matter Capacity 800 Sight Range 22 Robot Scan Range 30 Terrain Scan Range 30 Terrain Scan Density 1010 ECM Strength 3 Jamming Range 22 Armor Coverage 900 Resistance: TH 75 Resistance: EM 75 Propulsion Shielding 66 Utility Shielding 90 Weapon Shielding 100 Weapon Cycling 25 Evasion (%) 75 Targeting Accuracy 8 Core Analysis 6 Armor Integrity Analysis 33 Recoil Reduction 4 Energy Filtering 50 Offensive Hacking 67 Defensive Hacking 26 Item Schematics ----------------- Com. HERF Cannon | -3/Quarantine | Hacked Adv. Reaction Control System | -3/Section 7 | Hacked Adv. Heavy Siege Treads | -3/Section 7 | Hacked Robot Schematics ------------------ None Fabricated ------------ Exp. Sensor Array | x1 | -5/Factory Exp. Sensor Array | x1 | -4/Factory Exp. Utility Shielding | x1 | -4/Factory Exp. Terrain Scan Processor | x1 | -4/Factory Exp. Terrain Scanner | x1 | -4/Factory Cmb. Linear Gravjet | x2 | -4/Factory Mni. Smartbomb Launcher | x1 | -4/Factory Exp. Utility Shielding | x1 | -4/Armory Lrg. Storage Unit | x1 | -4/Armory Exp. Weapon Shielding | x1 | -4/Armory Exp. Weapon Shielding | x1 | -4/Armory Exp. Terrain Scanner | x1 | -4/Armory Exp. Utility Shielding | x1 | -4/Armory Exp. Signal Interpreter | x1 | -4/Armory Adv. Hacking Suite | x1 | -4/Armory Adv. Hacking Suite | x1 | -3/Research Adv. Hacking Suite | x1 | -3/Research Beam Splitter | x1 | -3/Research EM Dispersion Field | x1 | -3/Research Com. Tesla Bomb Launcher | x1 | -3/Research Com. Tesla Bomb Launcher | x1 | -3/Research Alien Tech Used ----------------- Integrated Reactor Core Reset Matrix Dimensional Node Initializer Subatomic Replicator Integrated Singularity Reactor Core Expander LRC Matter Compressor Integrated Dissipator Sigix Terminator Transdimensional Reconstructor Achievements -------------- None Challenges ------------ None Game ------ Seed LinearSlugUnit Manual? 0 Play Time 05:28:14 Cumulative 880.3 hours Start 2020.08.26 @ 05:12:42 End 2020.08.26 @ 11:29:45 Sessions 5 Manual Loads 0 Difficulty Rogue Special Mode None Game No. 277 Rogue 277 Adventurer 0 Explorer 0 Win Type 3 Total 54 Types 40/1/4/4/3/1/1 Lore% 97 Gallery% 99 Achievement% 97 Wizard Run 0 Options --------- ASCII 0 Keyboard 1 Movement Numpad Keybinds 0 Fullscreen 1 Font 18/SmallcapsGlow Map View 76x50 Tactical HUD 1 Map Filters NONE Filters NONE Steam 1 RUN: 3c31ecd7-589c-42d7-9a65-17dec52e8cc6